{"text_format":"1","workbook":"xlsx","n_sheets":9,"sheets":["Prompt","C100","C200","C300","C317","C400","C700","C800","Enviar"],"not_rendered":{"charts":0,"images":6,"macros":1,"external_links":0,"defined_names":2,"comments":0,"pivot_tables":0},"unopened":[],"bounds":{"document_bytes":16777216,"sheet_cells":100000,"rows_first":2000,"rows_last":500,"rows_between":2000,"halvings":0,"cell_chars":16384,"cell_head_chars":4096},"cells_cut":0,"cells_raw":0,"read":"whole","date_system":"1900"}

{"sheet":"Prompt","index":0,"n_rows":79,"n_cols":4,"rows_kept":79,"cut":false,"hidden":true,"merged":[[1,3,2,6],[4,1,6,8],[43,1,44,8],[78,1,79,8],[9,1,10,8]]}
[]
[null,null,null,"¡ATENCIÓN!"]
[]
[]
[null,"Para hacer uso de las funcionalidades de esta Cédula Electrónica debe habilitar macros"]
[]
[]
[]
[]
[null,"Si utiliza Excel 2013 siga el siguiente procedimiento:"]
[]
[]
[]
[]
[]
[]
[]
[]
[]
[]
[]
[]
[]
[]
[]
[]
[]
[]
[]
[]
[]
[]
[]
[]
[]
[]
[]
[]
[]
[]
[]
[]
[]
[null,"Si utiliza Excel 2007 siga el siguiente procedimiento:"]
[]
[]
[]
[]
[]
[]
[]
[]
[]
[]
[]
[]
[]
[]
[]
[]
[]
[]
[]
[]
[]
[]
[]
[]
[]
[]
[]
[]
[]
[]
[]
[]
[]
[]
[null,"Si utiliza Excel 2000, 2002, 2003 siga el siguiente procedimiento:"]

{"sheet":"C100","index":1,"n_rows":443,"n_cols":23,"rows_kept":443,"cut":false,"hidden":false,"merged":[[31,19,31,20],[92,18,92,22],[72,15,73,21],[76,15,77,21],[57,10,57,11],[80,15,81,21],[80,22,81,22],[82,17,82,21],[86,9,86,11],[68,22,69,22],[33,20,33,22],[66,15,66,21],[65,8,65,9],[1,6,1,19],[2,6,2,19],[3,6,3,19],[14,6,14,22],[2,21,4,23],[16,18,16,22],[12,6,12,8],[12,20,12,22],[76,22,77,22],[54,10,54,11],[30,19,30,20],[28,20,28,22],[68,15,69,21],[36,19,36,20],[63,8,63,9],[62,7,62,9],[62,10,62,11],[61,7,61,11],[64,8,64,9],[72,22,73,22],[16,6,16,11],[309,17,309,21],[131,10,131,11],[131,5,131,7],[119,19,119,22],[130,19,130,22],[198,8,198,11],[126,10,126,11],[127,10,127,11],[128,10,128,11],[129,10,129,11],[130,10,130,11],[182,8,182,11],[240,17,240,21],[224,20,224,22],[253,20,253,21],[165,9,165,10],[96,6,96,8],[96,9,96,11],[118,10,118,11],[112,3,112,6],[86,6,86,8],[117,10,117,11],[112,10,112,11],[113,10,113,11],[114,10,114,11],[115,10,115,11],[116,10,116,11],[124,10,124,11],[125,10,125,11],[162,7,162,8],[124,9,125,9],[124,8,125,8],[186,17,186,21],[207,17,207,21],[298,17,298,21],[209,6,209,10],[118,5,118,7],[245,14,247,22],[257,6,257,10],[248,4,248,9],[276,20,276,22],[265,20,265,22],[269,2,269,12],[275,2,275,12],[254,18,256,22],[166,9,166,10],[230,6,230,10],[124,3,125,6]]}
[]
[null,null,null,null,null,null,"CENSO EDUCATIVO 2023"]
[null,null,null,null,null,null,"EDUCACIÓN BÁSICA REGULAR",null,null,null,null,null,null,null,null,null,null,null,null,null,null,"2A"]
[null,null,null,null,null,null,"INICIAL NO ESCOLARIZADA"]
[null,null,"Version:","2 - (32 y 64 bits)"]
[null,null,"INSTRUCCIONES DEL FORMATO ELECTRÓNICO "]
[]
[]
[]
[null,null,"IDENTIFICACIÓN DEL PROGRAMA EDUCATIVO"]
[null,null,"La fuente de estos datos debe ser la RD de Creación/Renovación del PRONOIE, según lo establecido por la RVM Nº 036-2015-ED"]
[]
[null,null,"1. CÓDIGO MODULAR :",null,null,null,null,null,null,null,null,null,null,null,"2. D.N.I. DE PROFESOR(A) COORDINADOR(A):"]
[]
[null,null,"3. NOMBRE DEL PRONOEI :"]
[]
[null,null,"4. DISTRITO :",null,null,null,null,null,null,null,null,null,null,null,null,null,null,"5. LOCALIDAD / CENTRO POBLADO :"]
[]
[]
[null,null,"6.  ENTIDAD GESTORA",null,null,null,null," (Marcar con \"X\" según corresponda)",null,null,null,null,null,"8. TIPO DE PROGRAMA NO ESCOLARIZADO, SEGÚN CICLO:"]
[]
[null,null,null,null,"1 - Sector Educación",null,null,null,null,null,null,null,null,null,"Ciclo I:",null,{"$f":"CONCATENATE(R22,R23,R24)","v":""},null,"1 - Entorno Familiar"]
[null,null,null,null,"2 - Otro Sector Público o FF.AA.",null,null,null,null,null,null,null,null,null,null,null,null,null,"2 - Entorno Comunitario"]
[null,null,null,null,"3 - Municipalidad",null,null,null,null,null,null,null,null,null,null,null,null,null,"3- Salas de Educación Temprana (SET)"]
[null,null,null,null,"4 - Comunidad o Asoc. Religiosa - Católica Parroquial"]
[null,null,null,null,"5 - Otra Congregación / Asoc. Religiosa",null,null,null,null,null,null,null,null,null,"Ciclo II:",null,{"$f":"CONCATENATE(R26,R27)","v":""},null,"4 - Entorno Familiar"]
[null,null,null,null,"6 - Comunidad (comunal)",null,null,null,null,null,null,null,null,null,null,null,null,null,"5 - Entorno Comunitario"]
[null,null,null,null,"7 - Inst. Bénefica / Asociación Civil"]
[null,null,null,null,null,null,null,null,null,null,null,null,null,"9.  R.D. DE CREACIÓN",null,null,null,null,"Número R.D."]
[]
[null,null,"7.  FINANCIAMIENTO",null,null,null,null," (Puede marcar más de una opción)",null,null,null,null,null,null,null,null,null,"Día",null,"Mes",null,null,"Año"]
[null,null,null,null,null,null,null,null,null,null,null,null,null,null,"Fecha :",null,null,null,"-",null,null,"-"]
[null,null,null,null," 1 - Sector Educación"]
[null,null,null,null," 2 - Otro Sector Público o FF.AA.",null,null,null,null,null,null,null,null,"10.  R.D. DE RENOVACIÓN",null,null,null,null,"Número R.D."]
[null,null,null,null," 3 - Municipalidad"]
[null,null,null,null," 4 - Otra fuente privada",null,null,null,null,null,null,null,null,null,null,null,null,"Día",null,"Mes",null,null,"Año"]
[null,null,null,null,null,null,null,null,null,null,null,null,null,null,"Fecha :",null,null,null,"-",null,null,"-"]
["GESTIÓN"]
[]
[]
[]
[]
[]
[]
[]
[]
[{"$f":"CONCATENATE(J47,P47,U47)","v":""},null,"Esta Institución Educativa es de Gestión : ",null,null,null,null,null,null,null," 1 - Pública de gestión directa",null,null,null,null,null," 2 - Pública de gestión privada",null,null,null,null," 3 - Privada"]
[]
[]
[null,null,"100. CARACTERÍSTICAS DEL SERVICIO EDUCATIVO (Para PRONOEI Públicos y Privados)"]
[]
[null,null,"A. CARACTERÍSTICA DE LA ENSEÑANZA"]
[null,null,"101.A CON RESPECTO A LAS CLASES:",null,null,null,null,null,null,null,null,null,null,"107.A EN EL PROCESO DE MATRÍCULA DEL PERIODO 2023, LOS PADRES DE FAMILIA, "]
[null,null,null,"A. ¿CUANDO INICIARON LAS CLASES?",null,null,null,null,"Día",null,"Mes",null,null,"CUIDADORES(AS) O APODERADOS(AS) QUE SE PRESENTARON Y SOLICITARON "]
[null,null,null,"(Primer día en que asistieron)",null,null,null,null,null,"-",null,null,null,"UNA O MÁS VACANTES EN ESTE PRONOEI, ¿LOGRARON OBTENER EL TOTAL"]
[null,null,null,null,null,null,null,null,null,null,null,null,null,"DE VACANTES SOLICITADAS?"]
[null,null,null,"B. ¿CUANDO TERMINARÁN LAS CLASES?",null,null,null,null,"Día",null,"Mes",null,null,null,"Sí",null,null,"Pase a la pregunta 109.A"]
[null,null,null,"(Último día en que asistirán)",null,null,null,null,null,"-"]
[null,null,null,null,null,null,null,null,null,null,null,null,null,null," No  ",null,null,"¿Por qué no lograron una o más vacante(s)?"]
[null,null,"102.A HORARIO DE CLASES DE LAS/LOS ESTUDIANTES:",null,null,null,null,null,null,null,null,null,null,null,null,null,null,null,"No hay capacidad para recibirlos"]
[null,null,null,null,null,null,null,null,null,null,null,null,null,null,null,null,null,null,"Hay capacidad, pero existen aulas con mucho riesgo"]
[null,null,null,null,null,null,null,"Horario de clases",null,null,null,null,null,null,null,null,null,null,"Prefiero tener una carga docente baja"]
[null,null,null,null,null,"TURNO",null,"Inicio",null,null,"Termino"]
[null,null,null,null,null,null,{"$f":"G65+G66","v":0},"Horas","Minutos",null,"Horas","Minutos",null,"108.A ¿QUÉ CRITERIOS DE PRIORIZACIÓN TUVIERON EN CUENTA PARA LA MATRÍCULA"]
[null,null,null,null,"01","Mañana",{"$f":"SUM(H65:L65)","v":0},null,null,null,null,null,null,"DE LOS ESTUDIANTES QUE SOLICITARON UNA VACANTE EN ESTE PRONOEI?"]
[null,null,null,null,"02","Tarde",{"$f":"SUM(H66:L66)","v":0}]
[null,null,null,null,null,null,null,null,null,null,null,null,null,null,"NRO.","CRITERIOS",null,null,null,null,null,null," SI - NO"]
[null,null,null,null,null,null,null,null,null,null,null,null,null,null,1,"Cercanía del lugar de residencia del estudiante a la I.E."]
[null,null,"103.A EN EL PRESENTE AÑO, ¿BAJO QUÉ MODALIDAD SE REALIZAN LAS CLASES",null,null,null,null,null,null,null,null,null,null,null,2,"Cercanía del trabajo de los padres o apoderados del estudiante a la I.E."]
[null,null,"EN ESTE PRONOEI?"]
[null,null,null,null,null,null,null,null,null,null,null,null,null,null,3,"Hermanos (as) estudiando en la misma I.E."]
[null,null,null,null,"Presencial",null,null,"Semi presencial",null,null,"Virtual",null,null,null,4,"Hijos (as) de ex alumnos (as)"]
[null,null,null,null,null,null,null,null,null,null,null,null,null,null,5,"Niños (as) con Necesidades Educativas Especiales (NEE) asociadas a discapacidad"]
[null,null,"104.A SOLO, SI LAS CLASES EMPEZARON EN UNA FECHA POSTERIOR A LA "]
[null,null,"PROGRAMADA, INDIQUE EL MOTIVO",null,null,null,null,null,null,null,null,null,null,null,6,"Estado civil de los padres"]
[null,null,null,null,null,null,null,null,null,null,null,null,null,null,7,"Record de rendimiento académico del estudiante"]
[null,null,null,"Marque con una “X”, una o más opciones",null,null,null,null,null,null,null,null,null,null,8,"Documentos que sustenten solvencia económica de los padres o apoderados"]
[null,null,null,null,"  1 - Dificultad para la identificación del Promotor Educativo Comunitario (a)."]
[null,null,null,null,"  2 - No se contó con financiamiento oportuno.",null,null,null,null,null,null,null,null,null,9,"Orden de llegada de los doc. de inscripción del estudiante"]
[null,null,null,null,"  3 - No se contó con las condiciones para el funcionamiento del PRONOEI.",null,null,null,null,null,null,null,null,null,10,"Que los estudiantes cuenten con documento de identidad"]
[null,null,null,null,"  4 - Fenómeno Climatológico / Desastre natural.",null,null,null,null,null,null,null,null,null,11,"Que el estudiante haya rendido una evaluación de ingreso previa a la matrícula"]
[]
[null,null,null,null,null,null,null,null,null,null,null,null,null,null,12,"Otros"]
[null,null,"105.A EN ESTE PRONOEI, ¿CUANTAS VACANTES POR EDAD SEGÚN TURNO OFRECIÓ ",null,null,null,null,null,null,null,null,null,null,null,null,null,null,null,null,null,null,null,{"$f":"COUNTIF(W68:W83,\"SI\") + COUNTIF(W68:W83,\"NO\")","v":0}]
[null,null,"PARA EL PRESENTE PERIODO LECTIVO?",null,null,null,null,null,null,null,null,null,null,"109.A EN LOS ÚLTIMOS TRES MESES, ¿QUÉ SERVICIOS SE OFRECIERON EN ESTE PRONOEI?"]
[]
[null,null,null,null,null,null,"Ciclo I",null,null,"Ciclo II",null,null,null,null,null,"Qali Warma"]
[null,null,null,"EDADES",null,null,0,1,2,3,4,"5 y +",null,null,null,"Vacunación"]
[null,null,null,"Turno mañana",null,null,null,null,null,null,null,null,null,null,null,"Control de Crecimiento y Desarrollo"]
[null,null,null,null,null,null,null,null,null,null,null,null,null,null,null,"SAANEE"]
[null,null,null,"Turno tarde",null,null,null,null,null,null,null,null,null,null,null,"PRITE"]
[null,null,null,null,null,null,null,null,null,null,null,null,null,null,null,"Servicio de Apoyo Educativo Virtual (SAEV)"]
[null,null,null,null,null,null,null,null,null,null,null,null,null,null,null,"Otro - especificar"]
[null,null,"106.A EN ESTE PRONOEI, ¿CUANTOS POSTULANTES POR EDAD SEGÚN TURNO SE",null,null,null,null,null,null,null,null,null,null,null,null,"Ninguno"]
[null,null,"PRESENTARON PARA EL PRESENTE PERIODO LECTIVO?"]
[null,null,null,null,null,null,null,null,null,null,null,null,null,"110.A EL PRONOEI, ¿CUENTA CON UN PLAN APROBADO DE LUCHA CONTRA LA ANEMIA?"]
[null,null,null,null,null,null,"Ciclo I",null,null,"Ciclo II"]
[null,null,null,"EDADES",null,null,0,1,2,3,4,"5 y +",null,null," Sí",null,null," No  "]
[null,null,null,"Turno mañana"]
[null,null,null,null,null,null,null,null,null,null,null,null,null,null,null,null,"¿Está incorporado en los documentos de gestión?"]
[null,null,null,"Turno tarde"]
[null,null,null,null,null,null,null,null,null,null,null,null,null,null,null,null," Sí   ",null,null," No  "]
[]
[]
[null,null,"111.A DURANTE EL 2022 ¿HA COORDINADO CON ALGUNA INSTITUCIÓN PARA REALIZAR",null,null,null,null,null,null,null,null,null,null,"114.A ¿EL PRONOEI SE ENCUENTRA EN EL ÁMBITO DE ALGÚN ESTABLECIMIENTO"]
[null,null,"ACTIVIDADES RELACIONADAS A LA LUCHA CONTRA LA ANEMIA?",null,null,null,null,null,null,null,null,null,null,"DE SALUD?"]
[null,null,null,null,null,null,null,null,null,null,null,"Pase a la"]
[null,null,null,"Sí",null,"No   ",null,null,"No sabe   ",null,null,"pregunta 113.A",null,null," Sí",null,null," No  ",null,null,"Pase a la pregunta 116.A"]
[]
[null,null,"112.A INDIQUE USTED, ¿CUÁLES DE LAS SIGUIENTES INSTITUCIONES ORGANIZARON ",null,null,null,null,null,null,null,null,null,null,"115.A ¿EL PRONOEI REALIZA COORDINACIONES Y/O ACCIONES DE ARTICULACIÓN"]
[null,null,"ALGUNA ACTIVIDAD RELACIONADA A LA LUCHA CONTRA LA ANEMIA?",null,null,null,null,null,null,null,null,null,null,"  CON EL ESTABLECIMIENTO DE SALUD?"]
[]
[null,null,null,"Entidad que Organizó",null,null,null,{"$f":"COUNTIF(I114:J119,\"X\")","v":0}," Si","No","Fecha",null,null,null," Sí",null,null," No  "]
[1,null,null,"1. Pronoei"]
[2,null,null,"2. UGEL / DRE",null,null,null,null,null,null,null,null,null,null,null,null,"¿Qué tipo de coordinaciones y/o acciones realiza?"]
[3,null,null,"3. Establecimiento de Salud",null,null,null,null,null,null,null,null,null,null,null,null,null,null,"Salud física de estudiantes"]
[4,null,null,"4. Municipalidad",null,null,null,null,null,null,null,null,null,null,null,null,null,null,"Salud física del PEC"]
[5,null,null,"5. Organización No Gubernamental (ONG)",null,null,null,null,null,null,null,null,null,null,null,null,null,null,"Salud mental del estudiante"]
[6,null,null,"6. Otro",null,null,null,null,null,null,null,null,null,null,null,null,null,null,"Salud mental del PEC"]
[null,null,null,null,null,null,null,null,null,null,null,null,null,null,null,null,null,null,"Otro"]
[]
[null,null,"113.A DURANTE EL AÑO 2022 ¿SE REALIZARON TALLERES DIRIGIDOS A LOS PADRES ",null,null,null,null,null,null,null,null,null,null,"116.A DURANTE EL 2022 Y HASTA LA FECHA DE LA APLICACIÓN DEL CENSO 2022, "]
[null,null,"DE FAMILIA O APODERADOS EN EL PRONOEI?",null,null,null,null,null,null,null,null,null,null,"¿EN EL PRONOEI SE HAN REALIZADO ACCIONES PARA ATENDER LAS SITUA-"]
[null,null,null,null,null,null,null,null,null,null,null,null,null,"CIONES DE INTERRUPCIÓN DE LOS ESTUDIOS?"]
[null,null,null,"Talleres de …",null,null,null,null," Si","No","Cantidad"]
[null,null,null,null,null,null,null,{"$f":"COUNTIF(I127:J132,\"X\")","v":0},null,null,"de Talleres",null,null,null,"Sí",null,null,"¿Qué acciones se realizaron?"]
[1,null,null,"1. Aprendizajes",null,null,null,null,null,null,null,null,null,null,null,null,null,null,"Seguimiento y visitas a estud. en riesgo de abandono "]
[2,null,null,"2. Pauta de crianza",null,null,null,null,null,null,null,null,null,null,null,null,null,null,"Orientaciones sobre la continuidad en el PRONOEI"]
[3,null,null,"3. Violencia",null,null,null,null,null,null,null,null,null,null,null,null,null,null,"Flexibilización de la atención educativa en el PRONOEI"]
[4,null,null,"4. Inclusión",null,null,null,null,null,null,null,null,null,null,null,null,null,null,"Focalizar a los estudiantes en riesgo"]
[5,null,null,"5. Alimentación y hábitos de higiene",null,null,null,null,null,null,null,null,null,null,null,null,null,null,"Otro"]
[6,null,null,"6. Otro"]
[null,null,null,null,null,null,null,null,null,null,null,null,null,null," No  "]
[]
[]
[null,null,"B. TUTORÍA , ORIENTACIÓN EDUCATIVA Y CONVIVENCIA ESCOLAR"]
[null,null,"101.B EN ESTE PRONOEI ¿SE DESARROLLAN PROGRAMAS QUE PROMUEVAN LA ",null,null,null,null,null,null,null,null,null,null,"104.B ¿LAS NORMAS DE CONVIVENCIA ESCOLAR HAN SIDO CONSTRUIDAS CON LA"]
[null,null,"ÉTICA, INTEGRIDAD Y VALORES?",null,null,null,null,null,null,null,null,null,null,"PARTICIPACIÓN DE REPRESENTANTES DE LAS FAMILIAS DE LAS/LOS ESTUDIANTES?"]
[]
[null,null,null,"Sí",null," No  ",null,null,null,null,null,null,null,null,"Sí",null,null," No  "]
[]
[null,null,"102.B EL PRONOEI, ¿CUENTA CON NORMAS DE CONVIVENCIA ESCOLAR ACTUALIZADAS",null,null,null,null,null,null,null,null,null,null,"105.B ¿EL PRONOEI CUENTA CON AL MENOS UNA/UN RESPONSABLE DE CONVIVENCIA"]
[null,null,"PARA EL AÑO 2023?",null,null,null,null,null,null,null,null,null,null,"ESCOLAR ASIGNADO PARA EL AÑO 2023?"]
[]
[null,null,null," Sí",null," No  ",null,null,"Pase a la pregunta 106.B",null,null,null,null,null,"Sí",null,null," No  "]
[]
[null,null,null,null,null,"¿Están incorporadas al reglamento interno?",null,null,null,null,null,null,null,"106.B EL PRONOEI, ¿CUENTA CON UN LIBRO DE REGISTRO DE INCIDENCIAS PARA"]
[null,null,null,null,null,null,null,null,null,null,null,null,null,"EL REGISTRO DE CASOS DE VIOLENCIA ESCOLAR, EN EL MARCO DE LA LEY N° 29719?"]
[null,null,null,null,null," Sí   ",null,null," No  "]
[null,null,null,null,null,null,null,null,null,null,null,null,null,null," Sí",null,null," No  ",null,null,"Pase a la pregunta 108.B"]
[null,null,"103.B ¿LAS NORMAS DE CONVIVENCIA ESCOLAR INCLUYEN NORMAS RELACIONADAS"]
[null,null,"A LA GESTIÓN DE BIENESTAR EN EL RETORNO A LA SEMIPRESENCIALIDAD",null,null,null,null,null,null,null,null,null,null,null,null,null,"¿El libro de registro se encuentra en un lugar visible?"]
[null,null,"O PRESENCIALIDAD?"]
[null,null,null,null,null,null,null,null,null,null,null,null,null,null,null,null," Sí   ",null,null," No  "]
[null,null,null,"Sí",null," No  "]
[]
[]
[null,null,"107.B EN EL AÑO 2022, ¿SE HIZO USO DEL LIBRO DE REGISTRO DE INCIDENCIAS?",null,null,null,null,null,null,null,null,null,null,"111.B ESTE PRONOEI, ¿RECIBE ASISTENCIA TÉCNICA PARA LA PROMOCIÓN DE LA"]
[null,null,null,null,null,null,null,null,null,null,null,null,null,"CONVIVENCIA ESCOLAR, LA PREVENCIÓN Y ATENCIÓN DE LA VIOLENCIA ESCOLAR?"]
[null,null,null,"Sí",null,"No  "]
[null,null,null,null,null,null,null,null,null,null,null,null,null,null,"Sí",null,null," No  "]
[null,null,null,null,null,"¿Cuántas incidencias se registraron en el año 2022?"]
[]
[null,null,null,null,null,null,null,null,null,null,null,null,null,"112.B ¿USTED HA RECURRIDO A LA UGEL/DRE SOLICITANDO ORIENTACIONES PARA"]
[null,null,null,null,null,"Anote la fecha de la última incidencia registrada en el año",null,null,null,null,null,null,null,"MEJORAR LA CONVIVENCIA EN SU PRONOEI?"]
[null,null,null,null,null,null,null,"DÍA","MES","AÑO"]
[null,null,null,null,null,null,null,null,null,null,null,null,null,null," Sí",null,null," No  "]
[]
[null,null,"108.B EL PRONOEI, ¿REALIZA ACTIVIDADES PARA UNA CONVIVENCIA ESCOLAR",null,null,null,null,null,null,null,null,null,null,null,null,null,"¿Usted ha recibido alguna información y/o capacitación?"]
[null,null,"DEMOCRÁTICA ?"]
[null,null,null,null,null,null,null,null,null,null,null,null,null,null,null,null,null," Sí   ",null," No  "]
[null,null,null," Sí",null," No  "]
[]
[null,null,null,null,null,"¿Cuenta con medios de verificación?",null,null,null,null,null,null,null,"113.B ¿EL PRONOEI CUENTA CON UN MAPA O DIRECTORIO DE ALIADOS ESTRATÉ-"]
[null,null,null,null,null,null,null,null,null,null,null,null,null,"GICOS PARA LA PREVENCIÓN Y ATENCIÓN DE CASOS DE VIOLENCIA ESCOLAR?"]
[null,null,null,null,null," Sí   ",null,null," No  "]
[null,null,null,null,null,null,null,null,null,null,null,null,null,null,"Sí",null,null," No  ",null,null,"Pase a la pregunta 115.B"]
[null,null,null,null,null,null,null,"¿Con que medios de verificación cuenta?"]
[null,null,null,null,null,null,null,null,null,null,null,null,null,null,null,null,"Indique quiénes lo conforman:"]
[null,null,null,null,null,null,null,"Informe de actividades",null,null,null,null,null,null,null,"Marque con una “X”, una o más opciones"]
[null,null,null,null,null,null,null,"Fotografías",null,null,null,null,null,null,null,null,"DEMUNA"]
[null,null,null,null,null,null,null,"Videos",null,null,null,null,null,null,null,null,"Defensoría del pueblo"]
[null,null,null,null,null,null,null,"Otro",null,null,null,null,null,null,null,null,"Centro de emergencia Mujer (CEM)"]
[null,null,null,null,null,null,null,null,null,null,null,null,null,null,null,null,"Centro o posta de salud"]
[null,null,"109.B EL PRONOEI, ¿REALIZA ACTIVIDADES PARA LA PREVENCIÓN DE LA VIOLENCIA ",null,null,null,null,null,null,null,null,null,null,null,null,null,"Iglesia"]
[null,null,"CONTRA NIÑAS, NIÑOS Y ADOLESCENTES?",null,null,null,null,null,null,null,null,null,null,null,null,null,"Comisaría"]
[null,null,null,null,null,null,null,null,null,null,null,null,null,null,null,null,"Otro"]
[null,null,null," Sí",null," No  ",null,null,"Pase a la pregunta 111.B"]
[null,null,null,null,null,null,null,null,null,null,null,null,null,"114.B ¿EL PRONOEI HA REALIZADO ALGUNA ACTIVIDAD COORDINADA CON"]
[null,null,null,null,null,"¿Cuenta con medios de verificación?",null,null,null,null,null,null,null,"ALGUNO DE LOS ALIADOS ESTRATÉGICOS?"]
[]
[null,null,null,null,null," Sí   ",null,null," No  ",null,null,null,null,null," Sí",null,null," No  "]
[]
[null,null,null,null,null,null,null,"¿Con que medios de verificación cuenta?"]
[null,null,null,null,null,null,"Marque con una “X”, una o más opciones",null,null,null,null,null,null,"115.B EL PRONOEI QUE DIRIGE, ¿DURANTE EL PRESENTE AÑO HA RECIBIDO O "]
[null,null,null,null,null,null,null,"Informe de actividades",null,null,null,null,null,"VIENE RECIBIENDO APOYO DE ALGUNA EMPRESA PRIVADA O DE ALGUNA ONG EN"]
[null,null,null,null,null,null,null,"Fotografías",null,null,null,null,null,"TEMAS DE MEJORA DE INFRAESTRUCTURA, MOBILIARIO Y EQUIPAMIENTO?"]
[null,null,null,null,null,null,null,"Videos"]
[null,null,null,null,null,null,null,"Otro",null,null,null,null,null,null," Sí",null,null," No  ",null,null,"Pase a la pregunta 101.C"]
[]
[null,null,"110.B ¿CUÁLES SON LAS ACTIVIDADES QUE REALIZA ESTE PRONOEI, PARA LA "]
[null,null,"PREVENCIÓN DE LA VIOLENCIA CONTRA NIÑAS, NIÑOS Y ADOLESCENTES?",null,null,null,null,null,null,null,null,null,null,"116.B INDIQUE EL TIPO DE APOYO QUE HA RECIBIDO DE LA EMPRESA PRIVADA U "]
[null,null,null,"Marque con una “X”, una o más opciones",null,null,null,null,null,null,null,null,null,"ONG MENCIONADA EN SU RESPUESTA ANTERIOR"]
[null,null,null,null,"Gestión de talleres o reuniones con estudiantes."]
[null,null,null,null,"Capacitación a docentes para prevenir y/o atender casos de riesgo.",null,null,null,null,null,null,null,null,null,null,null,"Infraestructura"]
[null,null,null,null,"Envío de orientaciones a apoderados/as.",null,null,null,null,null,null,null,null,null,null,null,"Mobiliario"]
[null,null,null,null,"Gestión de talleres o reuniones con apoderados/as.",null,null,null,null,null,null,null,null,null,null,null,"Equipamiento"]
[null,null,null,null,"Gestión de estrategias en conjunto con otras organizaciones.",null,null,null,null,null,null,null,null,null,null,null,"Otros"]
[null,null,null,null,"Monitoreo de situación emocional y familiar de estudiantes."]
[null,null,null,null,"Otro - especificar"]
[]
[]
[]
[null,null,"C. ACOMPAÑAMIENTO Y SOPORTE PEDAGÓGICO"]
[null,null,"101.C DESDE EL INICIO DEL AÑO ESCOLAR 2023 HASTA LA FECHA DE REPORTE DEL",null,null,null,null,null,null,null,null,null,null,"103.C EL PRONOEI, ¿REALIZA ACTIVIDADES CON FAMILIAS Y COMUNIDAD QUE AYUDEN"]
[null,null,"CENSO EDUCATIVO EL PRONOEI, ¿HA RECIBIDO COMUNICACIÓN O PARTICIPACIÓN",null,null,null,null,null,null,null,null,null,null,"A LA PROMOCIÓN DE UN AMBIENTE INSTITUCIONAL FAVORABLE PARA LA "]
[null,null,"PRESENCIAL O VIRTUAL/REMOTA DEL ESPECIALISTA PEDAGÓGICO DE LA UGEL,",null,null,null,null,null,null,null,null,null,null,"ATENCIÓN DE LA DIVERSIDAD?"]
[null,null,"CON LA FINALIDAD DE BRINDAR ASISTENCIA TÉCNICA?"]
[null,null,null,null,null,null,null,null,null,null,null,null,null,null," Sí",null,null,"¿Qué actividades realiza?"]
[null,null,null,"Sí",null,null,"¿Cuántas veces?",null,null,null,null,null,null,null,null,null,null,"Marque con un “X” solo una opción"]
[null,null,null,null,null,null,"Presencial:",null,null,null,null,null,null,null,null,null,null,null,"Acompañamiento en el proceso de aprendizaje"]
[null,null,null,null,null,null,"Virtual/Remota:",null,null,null,null,null,null,null," No  ",null,null,null,"Actividades que fortalecen las competencias …"]
[null,null,null,null,null,null,null,null,null,null,null,null,null,null,null,null,null,null,"Vínculos afectivos con hijos e hijas"]
[null,null,null," No  ",null,null,null,null,null,null,null,null,null,null,null,null,null,null,"Jornadas con madres y padres"]
[null,null,null,null,null,null,null,null,null,null,null,null,null,null,null,null,null,null,"Otros"]
[null,null,"102.C EL PRONOEI, ¿DESARROLLA LAS SIGUIENTES ESTRATEGIAS DE ACOMPAÑAMIENTO?"]
[null,null,null,null,null,null,null,null,null,null,null,null,null,"104.C DURANTE EL AÑO 2022, ¿SE REALIZÓ EL INFORME DEL PROGRESO DE LOS"]
[null,null,null,null," Visita en aula",null,"Solo en caso de presencialidad",null,null,null,null,null,null,"ESTUDIANTES A LOS PADRES DE FAMILIA?"]
[null,null,null,null," Grupos de Interaprendizaje (GIA)"]
[null,null,null,null," Talleres",null,null,null,null,null,null,null,null,null,"Sí",null,null,null,"¿Cuántas veces?"]
[null,null,null,null," Otros - especificar"]
[null,null,null,null,null,null,null,null,null,null,null,null,null,null,"No",null,null,null,"Pase a la pregunta 101.D"]
[]
[null,null,null,null,null,null,null,null,null,null,null,null,null,"105.C ¿CÓMO SE REALIZÓ EL INFORME DEL PROGRESO DE LOS ESTUDIANTES A LOS"]
[null,null,null,null,null,null,"¿Cuántos?",null,null,null,null,null,null,"PADRES DE FAMILIA EN EL AÑO 2022?"]
[null,null,null,null,null,null,"Marque con un “X” solo una opción"]
[null,null,null,null,null,null,null,null,null,null,null,null,null,null,null,"Marque con un “X” solo una opción"]
[null,null,null,null,null,null,null,"de 1 a 4 por área",null,null,null,null,null,null,null,null,"Individual - (Informe de cada estudiante a cada PPFF)"]
[null,null,null,null,null,null,null,"de 4 a 8 por área",null,null,null,null,null,null,null,null,"Pequeños grupos - (Informe en grupos de 2 hasta 10 estudiantes)"]
[null,null,null,null,null,null,null,"Más de 8 por área",null,null,null,null,null,null,null,null,"Grupal - (Informe en grupos de 11 a más estudiantes)"]
[null,null,null,null,null,null,null,null,null,null,null,null,null,null,null,null,"Otros"]
[]
[]
[null,null,"D. SOBRE LA BASE DEL CENSO DE POBLACIÓN Y VIVIENDA 2017 DEL INEI"]
[null,null,"101.D SEGÚN LAS COSTUMBRES Y EL ORIGEN FAMILIAR, ¿USTED CONSIDERA "]
[null,null,"QUE SU PRONOEI CUENTA CON ESTUDIANTES PERTENECIENTES A LOS",null,null,null,null,null,null,null,null,null,null,null,"SOLO SI MARCÓ \"SI\" EN DOS O MÁS ALTERNATIVAS EN LA\nPREGUNTA ANTERIOR, RESPONDA:"]
[null,null,"SIGUIENTES GRUPOS ÉTNICOS?"]
[]
[null,null,null,"COD.","GRUPO ETNICO",null,null,null,null,null,{"$f":"COUNTIF(L250:L258,\"SI\")","v":0}," SI - NO"]
[null,null,null,1,"Quechua"]
[null,null,null,2,"Aimara",null,null,null,null,null,null,null,null,"102.D ¿EXISTE UN GRUPO QUE TENGA MAYOR CANTIDAD DE ESTUDIANTES?"]
[null,null,null,3,"Nativo o indígena de la Amazonía"]
[null,null,null,4,"Perteneciente o parte de otro pueblo indígena u originario"]
[null,null,null,5,"Negro moreno, zambo, mulato/Pueblo afroperuano",null,null,null,null,null,null,null,null,null,"Sí",null,null,null,null,"Código"]
[null,null,null,6,"Blanco",null,null,null,null,null,null,null,null,null,null,null,null,null,"Indique el grupo étnico en el que identifica mayor cantidad de estudiantes utilizando el COD. seleccionado en la pregunta 141."]
[null,null,null,7,"Mestizo",null,null,null,null,null,null,null,null,null,"No"]
[null,null,null,8,"Asiático peruano"]
[null,null,null,9,"Otro  especifique"]
[null,null,null,null,null,null,null,null,null,null,{"$f":"IF(K249>1,\"X\",\"\")","v":""},{"$f":"COUNTIF(L250:L258,\"SI\")+COUNTIF(L250:L258,\"NO\")","v":0}]
[]
[null,null,"E. CARACTERÍSTICAS DE LA ENSEÑANZA EN CONTEXTOS BILINGÜES (SOLO PARA PRONOEI DE GESTIÓN PÚBLICA)"]
[null,null,"101.E ¿ESTE PRONOEI ESTÁ RECONOCIDO COMO EIB?",null,null,null,null,null,null,null,null,null,null,"104.E ¿USTED CONOCE SI EN LA COMUNIDAD DONDE SE ENCUENTRA EL PRONOEI,"]
[null,null,null,null,null,null,null,null,null,null,null,null,null,"LOS PADRES DE FAMILIA, OTROS ADULTOS Y/O ANCIANOS y ANCIANAS"]
[null,null,null,null,null,"EIB de Fortalecimiento",null,null,null,null,null,null,null,"HABLAN UNA LENGUA ORIGINARIA?"]
[{"$f":"CONCATENATE(J265,J266)","v":""},null,null,"Sí",null,"EIB de Revitalización"]
[null,null,null,null,null,"EIB en Ámbitos Urbanos",null,null,null,null,null,null,null,null,"Sí",null,null,null,null,"¿Qué lengua originaria?  "]
[]
[null,null,null,"No",null,null,null," Pase a la pregunta 104.E",null,null,null,null,null,null,"No"]
[]
[null,null,"SOLO SI ES EIB DE FORTALECIMIENTO, RESPONDA:"]
[null,null,"102.E ¿ESTE PRONOEI OFRECE ENSEÑANZA DEL CASTELLANO COMO SEGUNDA",null,null,null,null,null,null,null,null,null,null,"105.E ¿LOS ESTUDIANTES DE ESTE PRONOEI HABLAN UNA LENGUA ORIGINARIA?"]
[null,null,"LENGUA?"]
[]
[null,null,null," Si",null,null,null,null," No",null,null,null,null,null,"Sí"]
[null,null,null,null,null,null,null,null,null,null,null,null,null,null,null,null,"Todos",null,null,null,"¿Qué lengua originaria?"]
[null,null,"SOLO SI ES EIB DE REVITALIZACIÓN O EIB EN ÁMBITOS URBANOS, RESPONDA:",null,null,null,null,null,null,null,null,null,null,null,null,null,"La mayoría"]
[null,null,"103.E ¿ESTE PRONOEI OFRECE ENSEÑANZA DE LA LENGUA ORIGINARIA COMO",null,null,null,null,null,null,null,null,null,null,null,null,null,"Pocos"]
[null,null,"SEGUNDA LENGUA?",null,null,null,null,null,null,null,null,null,null,null,null,null,null,null,{"$f":"CONCATENATE(S275,S276,S277)","v":""}]
[null,null,null,null,null,null,null,null,null,null,null,null,null,null,"No",null,null,null,null,null,"Anote el código según la"]
[null,null,null," Si",null,null,null,null," No",null,null,null,null,null,null,null,null,null,null,null,"página 10 de esta cédula"]
[]
[]
[null,null,"F. ATENCIÓN A LA DIVERSIDAD Y SOBRE EL SERVICIO DE APOYO Y ASESORAMIENTO A LAS NECESIDADES EDUCATIVAS ESPECIALES - SAANEE"]
[null,null,"101.F ESTE PRONOEI, ¿CUENTA CON UN ESPECIALISTA DEL EQUIPO DE SERVICIO",null,null,null,null,null,null,null,null,null,null,"104.F ¿DURANTE LOS ÚLTIMOS 5 AÑOS EL PERSONAL DE ESTE PRONOEI, HA"]
[null,null,"DE APOYO Y ASESORAMIENTO DE LAS NECESIDADES EDUCATIVAS ",null,null,null,null,null,null,null,null,null,null,"RECIBIDO CAPACITACIÓN EN TEMAS DE EDUCACIÓN INCLUSIVA O ATENCIÓN"]
[null,null,"ESPECIALES (SAANEE) QUE LE HAYA SIDO ASIGNADO?",null,null,null,null,null,null,null,null,null,null,"A LA DIVERSIDAD DE PARTE DE ESPECIALISTAS DE DRE/GRE Y/O UGEL, O"]
[null,null,null,null,null,null,null,null,null,null,null,null,null,"ALGUNA OTRA INSTITUCIÓN?"]
[null,null,null,"Sí",null," No  "]
[null,null,null,null,null,null,null,null,null,null,null,null,null,null," Sí",null,null," No  "]
[null,null,"102.F DURANTE EL PRESENTE AÑO, ESTE PRONOEI ¿HA RECIBIDO ASISTENCIA"]
[null,null,"Y ORIENTACIÓN PARA LA ATENCIÓN EDUCATIVA DE ESTUDIANTES CON",null,null,null,null,null,null,null,null,null,null,null,null,null,"¿Qué instancia o institución brindó la capacitación?"]
[null,null,"DISCAPACIDAD, DE PARTE DEL EQUIPO DE SERVICIO DE APOYO Y"]
[null,null,"ASESORAMIENTO DE LAS NECESIDADES EDUCATIVAS ESPECIALES (SAANEE)?",null,null,null,null,null,null,null,null,null,null,null,null,"","Minedu"]
[null,null,null,null,null,null,null,null,null,null,null,null,null,null,null,"","DRE/GRE"]
[null,null,null," Sí",null," No  ",null,null,null,null,null,null,null,null,null,"","UGEL"]
[null,null,null,null,null,null,null,null,null,null,null,null,null,null,null,"","Entidad privada, como auspicio"]
[null,null,null,null,null,"¿Cuántas asesorías (presenciales o virtuales) ha brindado",null,null,null,null,null,null,null,null,null,"","Organizaciones sin fines de lucro/ONG"]
[null,null,null,null,null,"el equipo SAANEE a este PRONOEI en el 2023?",null,null,null,null,null,null,null,null,null,"","Inversión propia"]
[null,null,null,null,null,null,null,null,null,null,null,null,null,null,null,"","Otro"]
[null,null,null,null,null,"¿Cuántas?"]
[null,null,null,null,null,null,null,null,null,null,null,null,null,"105.F ¿QUÉ ESTRATEGIAS FORMATIVAS VIRTUALES PRIORIZARÍA SOBRE TEMAS"]
[null,null,"103.F ¿EL PRONOEI HA RECIBIDO ASISTENCIA Y ORIENTACION PARA LA ATENCION ",null,null,null,null,null,null,null,null,null,null,"DE EDUCACIÓN INCLUSIVA O ATENCIÓN A LA DIVERSIDAD?"]
[null,null,"EDUCATIVA DE ESTUDIANTES CON DISCAPACIDAD, DE PARTE DEL SERVICIO "]
[null,null,"DE APOYO EDUCATIVO VIRTUAL (SAEV)?",null,null,null,null,null,null,null,null,null,null,null,null,null,"Curso virtual tutorado"]
[null,null,null,null,null,null,null,null,null,null,null,null,null,null,null,null,"Curso virtual autoformativo"]
[null,null,null," Sí",null," No  ",null,null,null,null,null,null,null,null,null,null,"Grupo o círculo de interaprendizaje"]
[null,null,null,null,null,null,null,null,null,null,null,null,null,null,null,null,"Comunidades profesionales de apendizaje"]
[null,null,null,null,null,"¿Cuántos estudiantes con discapacidad estan a cargo del/de la",null,null,null,null,null,null,null,null,null,null,"Asesoría personalizada"]
[null,null,null,null,null,"PEC que ha recibido asistencia y orientación del SAEV?",null,null,null,null,null,null,null,null,null,null,"Pasantia"]
[null,null,null,null,null,null,null,null,null,null,null,null,null,null,null,null,"Otros"]
[null,null,null,null,null,"¿Cuántas?"]
[null,null,null,null,null,null,null,null,null,null,null,null,null,"106.F ¿EL PRONOEI, CUENTA CON RESPONSABLE DE INCLUSIÓN?"]
[]
[null,null,null,null,null,null,null,null,null,null,null,null,null,null," Sí",null,null," No  "]
[]
[null,null,null,null,null,null,null,null,null,null,null,null,null,null,null,null,null,"¿Este personal labora a tiempo completo?"]
[]
[null,null,null,null,null,null,null,null,null,null,null,null,null,null,null,null,null," Sí",null,null," No  "]
[]
[]
[]
[]
["SI / NO"]
["SI"]
["NO"]
[]
["Dias"]
[1]
[2]
[3]
[4]
[5]
[6]
[7]
[8]
[9]
[10]
[11]
[12]
[13]
[14]
[15]
[16]
[17]
[18]
[19]
[20]
[21]
[22]
[23]
[24]
[25]
[26]
[27]
[28]
[29]
[30]
[31]
[]
["Meses"]
["01: Enero"]
["02: Febrero"]
["03: Marzo"]
["04: Abril"]
["05: Mayo"]
["06: Junio"]
["07: Julio"]
["08: Agosto"]
["09: Septiembre"]
["10: Octubre"]
["11: Noviembre"]
["12: Diciembre"]
["01: Enero"]
["02: Febrero"]
[]
["LENGUAS ORIGINARIAS"]
["0100: Castellano"]
["0200: Achuar"]
["0300: Aimara"]
["0400: Amahuaca"]
["0500: Arabela"]
["0600: Ashaninka"]
["0610: Asheninka"]
["0700: Awajún"]
["0800: Bora"]
["0900: Kapanawa"]
["1000: Cashinahua"]
["1100: Kawki"]
["1200: Chamicuro"]
["1300: Ese eja"]
["1400: Harakbut"]
["1500: Iñapari"]
["1600: Ikitu"]
["1700: Iskonawa"]
["1800: Jaqaru"]
["1900: Kakataibo"]
["2000: Kakinte"]
["2110: Kandozi-chapra (chapra)"]
["2120: Kandozi-chapra (kandozi)"]
["2200: Kukama kukamiria"]
["2300: Madija"]
["2400: Maijiki"]
["2500: Matsés"]
["2600: Matsigenka"]
["2700: Muniche"]
["2800: Murui-muinani"]
["2900: Matsigenka-montetokunirira"]
["3000: Nomatsigenga"]
["3100: Ocaina"]
["3200: Omagua"]
["3310: Quechua amazónico (Kichwa)"]
["3321: Quechua central (Ancash)"]
["3322: Quechua central (Huánuco)"]
["3323: Quechua central (Wanka)"]
["3324: Quechua central (Pasco)"]
["3331: Quechua norteño (Cajamarca)"]
["3332: Quechua norteño (Inkawasi Kañaris)"]
["3341: Quechua sureño (Chanka)"]
["3342: Quechua sureño (Collao)"]
["3400: Resígaro"]
["3500: Secoya"]
["3600: Sharanahua"]
["3700: Shawi"]
["3800: Shipibo-Konibo"]
["3900: Shiwilu"]
["4000: Taushiro"]
["4100: Ticuna"]
["4200: Urarina"]
["4300: Wampis"]
["4400: Yagua"]
["4500: Yaminahua"]
["4600: Yanesha"]
["4700: Yine"]
["4800: Nahua"]
["LENGUA EXTRANJERA"]
["5100: Alemán"]
["5200: Inglés"]
["5300: Italiano"]
["5400: Japonés"]
["5500: Portugués"]
["5600: Ruso"]
["5700: Francés"]
["5800: Otra lengua extranjera"]

{"sheet":"C200","index":2,"n_rows":72,"n_cols":21,"rows_kept":72,"cut":false,"hidden":false,"merged":[[13,2,15,3],[11,17,11,18],[10,2,12,3],[10,4,12,4],[11,19,11,20],[10,5,11,6],[11,7,11,8],[11,9,11,10],[11,11,11,12],[11,13,11,14],[11,15,11,16],[29,7,30,8],[30,9,30,10],[30,11,30,12],[20,2,21,3],[20,4,21,4],[20,5,21,5],[20,6,21,6],[22,2,24,3],[64,4,64,5],[1,4,1,17],[2,4,2,17],[50,13,50,14],[50,15,50,16],[58,4,58,5],[49,2,51,4],[49,6,51,6],[49,7,50,8],[50,9,50,10],[50,11,50,12],[30,13,30,14],[30,15,30,16],[44,4,44,5],[29,2,31,4],[29,6,31,6]]}
[null,""]
[null,"",null,null,"CENSO EDUCATIVO 2023"]
[null,"",null,null,"MATRÍCULA, PROMOTORES(AS) Y MATERIALES EDUCATIVOS"]
[]
[]
[]
[null,null,"200. MATRÍCULA Y SECCIONES  (Para PRONOEI Públicos y Privados)"]
[]
[null,null,201,"MATRÍCULA TOTAL POR EDADES, SEGÚN TURNO DE ENSEÑANZA"]
[]
[null,null,"VARIABLE",null,"TURNO","TOTAL",null,"EDADES"]
[null,null,null,null,null,null,null,0,null,1,null,2,null,3,null,4,null,5,null,"6 y más"]
[null,null,null,null,null,"H","M","H","M","H","M","H","M","H","M","H","M","H","M","H","M"]
["00",null,"MATRÍCULA",null,"TOTAL",{"$f":"H14+J14+L14+N14+P14+R14+T14","v":0},0,{"$f":"SUM(H15:H16)","v":0},0,0,0,0,0,0,0,0,0,{"$f":"SUM(R15:R16)","v":0},0,{"$f":"SUM(T15:T16)","v":0},0]
["01",null,null,null,"MAÑANA",0,0]
["02",null,null,null,"TARDE",0,0]
[]
[]
[null,null,202,"SECCIONES POR EDADES, SEGÚN TURNO DE ENSEÑANZA"]
[]
[null,null,"VARIABLE",null,"TURNO",null,"TOTAL","EDADES"]
[null,null,null,null,null,null,null,0,1,2,3,4,"5 y más"]
["00",null,"SECCIONES",null,"TOTAL",null,{"$f":"SUM(H23:M23)","v":0},{"$f":"SUM(H24:H25)","v":0},{"$f":"SUM(I24:I25)","v":0},0,0,0,0]
["01",null,null,null,"MAÑANA",null,{"$f":"SUM(H24:M24)","v":0}]
["02",null,null,null,"TARDE",null,{"$f":"SUM(H25:M25)","v":0}]
[]
[]
[null,null,203,"MATRÍCULA TOTAL POR GRADO DE ESTUDIO Y SEXO, SEGÚN TIPO DE DISCAPACIDAD"]
[]
[null,null,"TIPO DE DISCAPACIDAD",null,null,null,"Elija una opción","TOTAL",null,"EDADES"]
[null,null,null,null,null,null,null,null,null,3,null,4,null,5,null,"6 y más"]
[null,null,null,null,null,{"$f":"COUNTIF(G34:G45,\"SI\") + COUNTIF(G34:G45,\"NO\")","v":0},null,"H","M","H","M","H","M","H","M","H","M"]
["00",null,"TOTAL",null,null,null,"SN",{"$f":"SUM(H34:H45)","v":0},{"$f":"SUM(I34:I45)","v":0},{"$f":"SUM(J34:J45)","v":0},{"$f":"SUM(K34:K45)","v":0},0,0,0,0,{"$f":"SUM(P34:P45)","v":0},0]
["01",null,"Discapacidad Intelectual - Leve",null,null,null,null,{"$f":"J34+L34+N34+P34","v":0},{"$f":"K34+M34+O34+Q34","v":0}]
["02",null,"Discapacidad Intelectual - Moderada",null,null,null,null,{"$f":"J35+L35+N35+P35","v":0},{"$f":"K35+M35+O35+Q35","v":0}]
["03",null,"Discapacidad Auditiva - Hipoacusia",null,null,null,null,0,0]
["04",null,"Discapacidad Auditiva - Sordera",null,null,null,null,0,0]
["05",null,"Discapacidad Visual - Baja Visión",null,null,null,null,0,0]
["06",null,"Discapacidad Visual - Ceguera",null,null,null,null,0,0]
["07",null,"Discapacidad Física o Motora",null,null,null,null,0,0]
["08",null,"TEA - Requiere de apoyo (Nivel 1)",null,null,null,null,0,0]
["09",null,"TEA - Requiere de apoyo notable  (Nivel 2)",null,null,null,null,0,0]
["10",null,"TEA - Requiere de apoyo muy notable  (Nivel 3)",null,null,null,null,0,0]
["11",null,"Sordoceguera",null,null,null,null,0,0]
["12",null,"Otra discapacidad",null,null,null,null,{"$f":"J45+L45+N45+P45","v":0},{"$f":"K45+M45+O45+Q45","v":0}]
[]
[]
[null,null,204,"MATRÍCULA TOTAL POR GRADO DE ESTUDIO Y SEXO, SEGÚN OTRAS CONDICIONES DETECTADAS"]
[]
["SI",null,"OTRAS CONDICIONES DETECTADAS",null,null,null,"Elija una opción","TOTAL",null,"EDADES"]
["NO",null,null,null,null,null,null,null,null,3,null,4,null,5,null,"6 y más"]
[null,null,null,null,null,{"$f":"COUNTIF(G54:G72,\"SI\") + COUNTIF(G54:G72,\"NO\")","v":0},null,"H","M","H","M","H","M","H","M","H","M"]
["00",null,"TOTAL",null,null,null,"SN",{"$f":"SUM(H54:H72)","v":0},0,{"$f":"SUM(J54:J72)","v":0},{"$f":"SUM(K54:K72)","v":0},0,0,0,0,{"$f":"SUM(P54:P72)","v":0},0]
["01",null,"Retraso global del desarrollo",null,null,null,null,{"$f":"J54+L54+N54+P54","v":0},{"$f":"K54+M54+O54+Q54","v":0}]
["02",null,"Trastorno por Déficit de Atención - TDAH",null,null,null,null,{"$f":"J55+L55+N55+P55","v":0},{"$f":"K55+M55+O55+Q55","v":0}]
["03",null,"TEA - Dislexia",null,null,null,null,0,0]
["04",null,"TEA - Discalculia",null,null,null,null,0,0]
["05",null,"TEA - Disgrafia",null,null,null,null,0,0]
["06",null,"TEA - Otros",null,null,null,null,0,0]
["07",null,"Esquizofrenia (E)",null,null,null,null,0,0]
["08",null,"Depresión (D)",null,null,null,null,0,0]
["09",null,"Ansiedad (A)",null,null,null,null,0,0]
["10",null,"Trastornos de personalidad",null,null,null,null,0,0]
["11",null,"Otros",null,null,null,null,0,0]
["12",null,"Enfermedades Raras",null,null,null,null,0,0]
["13",null,"Talla Baja",null,null,null,null,0,0]
["14",null,"Menos de 15 días de hospitalización",null,null,null,null,0,0]
["15",null,"De 15 a 30 días de hospitalización",null,null,null,null,0,0]
["16",null,"Más de 30 días de hospitalización",null,null,null,null,0,0]
["17",null,"Talento",null,null,null,null,0,0]
["18",null,"Superdotación",null,null,null,null,0,0]
["19",null,"Otros condiciones relacionadas",null,null,null,null,{"$f":"J72+L72+N72+P72","v":0},{"$f":"K72+M72+O72+Q72","v":0}]

{"sheet":"C300","index":3,"n_rows":165,"n_cols":47,"rows_kept":165,"cut":false,"hidden":false,"merged":[[1,8,1,14],[2,8,2,14],[6,6,6,16],[13,35,16,35],[13,25,16,25],[13,26,15,27],[14,20,14,24],[13,20,13,24],[13,28,16,28],[13,29,16,29],[13,30,16,30],[13,31,16,31],[13,32,16,32],[13,34,16,34],[13,33,16,33],[13,17,16,17],[12,26,12,27],[15,24,16,24],[15,20,15,23],[12,20,12,24],[13,6,16,6],[13,15,16,15],[13,18,16,18],[13,13,16,13],[13,19,16,19],[12,10,12,11],[13,10,14,11],[13,14,16,14],[13,16,16,16],[13,12,16,12]]}
[]
[null,null,null,null,null,null,null,null,"CENSO EDUCATIVO 2023"]
[null,null,null,null,null,null,null,null,"MATRÍCULA, PROMOTORES(AS) Y MATERIALES EDUCATIVOS"]
[]
["PERSONAL",{"$f":"$N$10","v":0}]
[]
["COORDINADOR",null,null,null,null,null,"300. PROMOTORES(AS) EDUCATIVOS(AS) COMUNITARIOS(AS) (Para PRONOEI Públicos y Privados)"]
["PROMOTOR",null,null,null,null,null,"Utilice las tablas de código disponibles en la cédula borrador."]
[]
["GESTIÓN",{"$f":"IF(OR('C100'!J47=\"X\",'C100'!P47=\"X\"),1,IF('C100'!U47=\"X\",3,\"\"))","v":""},null,null,null,null,null,null,"Anote el total de Promotoras(es) educativa comunitaria"]
[]
["LENGUA ORIGINARIA",{"$f":"COUNTIF(P18:P22,\"SI\")","v":0},null,null,5]
[null,null,null,null,null,null,null,301.10000000000002,301.2,301.3,302,null,303,304,305,306,307,308,309,310,311,null,null,null,null,312,313,null,314,315,315.10000000000002,315.2,315.3,316.10000000000002,316.2,316.3]
[null,null,null,null,null,null,"Nº",null,null,null,"Documento de identidad",null,"Edad","Sexo","Lengua\nmaterna","¿Domina una lengua\noriginaria?\nSí - No","Lengua originaria\nque domina ","Máximo nivel\neducativo\nalcanzado","¿En qué tipo de Institución\nobtuvo su formación pedagógica?","Especialidad pedagógica o técnica que ha estudiado","¿ Ha sido capacitado en el uso de los materiales educativos?",null,null,null,null,"Vive en la comunidad donde funciona el PRONOEI","Tiempo de experiecia como PEC",null,"Nro. horas de capacitación recibidas en 2022","¿Atiende a estudiantes con NEE asociadas a discapacidad?","¿Presenta alguna discapacidad?","Solo si respondió SI en la pregunta 315.1 ¿Cúal es el tipo de discapacidad?","¿Ha recibido asistencia y orientación para la atención educativa de estudiantes con discapacidad de parte del equipo de (SAEV)?","¿Recibió asesoría pedagógica en el marco de refuerzo escolar?"," Solo si respondió Sí en la pregunta 316.1 ¿cuántas veces desde el inicio del año lectivo, recibió asesoría pedagógica en el marco de refuerzo escolar?","Solo si respondió Sí en la pregunta 316.1 Sobre qué temas ha recibido asistencia técnica"]
[null,null,null,null,null,null,null,"Apellido Paterno","Apellido Materno","Nombres",null,null,null,null,null,null,null,null,null,null,"Marque con una “X”, según corresponda"]
["302.1 Tipo de documento de Identidad","Exp1","Exp2","Exp3","Exp4",null,null,null,null,null,302.10000000000002,302.2,null,null,null,null,null,null,null,null," SI",null,null,null,"NO"]
["01 : DNI","Corr","Tnivel","Duplex","Fmt",null,null,null,null,null,"Tipo","Número",null,null,null,null,null,null,null,null,"MINEDU","DRE/UGEL","OTRO"," Especificar",null,null,"Años","Meses"]
["02 : Carnet Ext.",1,{"$f":"IF($R18=\"\",0,IF(VALUE(LEFT($R18,2))<4,1,IF(OR(LEFT($R18,2)=\"04\",LEFT($R18,2)=\"05\",LEFT($R18,2)=\"06\" ),2,IF(VALUE(LEFT($R18,2))>6,3,9))))","v":0},{"$f":"IF(K18<>\"\",COUNTIF($K$18:$K$22,$K18),0)","v":0},{"$f":"IF(G18<>\"\",1,0)","v":0},null,{"$f":"IF(B18<=$N$10,B18,\"\")","v":""},null,null,null,null,null,null,null,null,null,null,null,null,null,null,null,null,null,null,null,null,null,null,null,null,null,null,null,null,null,"","","","","","","","","","",""]
["03 : Pasaporte",2,{"$f":"IF($R19=\"\",0,IF(VALUE(LEFT($R19,2))<4,1,IF(OR(LEFT($R19,2)=\"04\",LEFT($R19,2)=\"05\",LEFT($R19,2)=\"06\" ),2,IF(VALUE(LEFT($R19,2))>6,3,9))))","v":0},{"$f":"IF(K19<>\"\",COUNTIF($K$18:$K$22,$K19),0)","v":0},{"$f":"IF(G19<>\"\",1,0)","v":0},null,{"$f":"IF(B19<=$N$10,B19,\"\")","v":""},null,null,null,null,null,null,null,null,null,null,null,null,null,null,null,null,null,null,null,null,null,null,null,null,null,null,null,null,null,"","","","","","","","","","",""]
[null,3,{"$f":"IF($R20=\"\",0,IF(VALUE(LEFT($R20,2))<4,1,IF(OR(LEFT($R20,2)=\"04\",LEFT($R20,2)=\"05\",LEFT($R20,2)=\"06\" ),2,IF(VALUE(LEFT($R20,2))>6,3,9))))","v":0},{"$f":"IF(K20<>\"\",COUNTIF($K$18:$K$22,$K20),0)","v":0},{"$f":"IF(G20<>\"\",1,0)","v":0},null,{"$f":"IF(B20<=$N$10,B20,\"\")","v":""},null,null,null,null,null,null,null,null,null,null,null,null,null,null,null,null,null,null,null,null,null,null,null,null,null,null,null,null,null,"","","","","","","","","","",""]
["304. Sexo",4,{"$f":"IF($R21=\"\",0,IF(VALUE(LEFT($R21,2))<4,1,IF(OR(LEFT($R21,2)=\"04\",LEFT($R21,2)=\"05\",LEFT($R21,2)=\"06\" ),2,IF(VALUE(LEFT($R21,2))>6,3,9))))","v":0},{"$f":"IF(K21<>\"\",COUNTIF($K$18:$K$22,$K21),0)","v":0},{"$f":"IF(G21<>\"\",1,0)","v":0},null,{"$f":"IF(B21<=$N$10,B21,\"\")","v":""},null,null,null,null,null,null,null,null,null,null,null,null,null,null,null,null,null,null,null,null,null,null,null,null,null,null,null,null,null,"","","","","","","","","","",""]
["Hombre",5,{"$f":"IF($R22=\"\",0,IF(VALUE(LEFT($R22,2))<4,1,IF(OR(LEFT($R22,2)=\"04\",LEFT($R22,2)=\"05\",LEFT($R22,2)=\"06\" ),2,IF(VALUE(LEFT($R22,2))>6,3,9))))","v":0},{"$f":"IF(K22<>\"\",COUNTIF($K$18:$K$22,$K22),0)","v":0},{"$f":"IF(G22<>\"\",1,0)","v":0},null,{"$f":"IF(B22<=N$10,B22,\"\")","v":""},null,null,null,null,null,null,null,null,null,null,null,null,null,null,null,null,null,null,null,null,null,null,null,null,null,null,null,null,null,"","","","","","","","","","",""]
["Mujer",null,null,null,null,null,null,null,null,null,"",null,"","","","","","","","","","","","","","","","",null,null,null,null,null,null,null,"","","","","","","","","","",""]
[null,null,null,null,null,null,null,null,null,"",null,null,"","","","","","","","","","","","","","","","",null,null,null,null,null,null,null,"","","","","","","","","","","",""]
["305. Lengua Materna",null,null,null,null,null,null,null,null,"",null,null,"","","","","","","","","","","","","","","","",null,null,null,null,null,null,null,"","","","","","","","","","","",""]
["0100: Castellano",null,null,null,null,null,null,null,null,"",null,null,"","","","","","","","","","","","","","","","",null,null,null,null,null,null,null,"","","","","","","","","","","",""]
["0200: Achuar",null,null,null,null,null,null,null,null,"",null,null,"","","","","","","","","","","","","","","","",null,null,null,null,null,null,null,"","","","","","","","","","","",""]
["0300: Aimara"]
["0400: Amahuaca"]
["0500: Arabela"]
["0600: Ashaninka"]
["0610: Asheninka"]
["0700: Awajún"]
["0800: Bora"]
["0900: Kapanawa"]
["1000: Cashinahua"]
["1100: Kawki"]
["1200: Chamicuro"]
["1300: Ese eja"]
["1400: Harakbut"]
["1500: Iñapari"]
["1600: Ikitu"]
["1700: Iskonawa"]
["1800: Jaqaru"]
["1900: Kakataibo"]
["2000: Kakinte"]
["2110: Kandozi-chapra (chapra)"]
["2120: Kandozi-chapra (kandozi)"]
["2200: Kukama kukamiria"]
["2300: Madija"]
["2400: Maijiki"]
["2500: Matsés"]
["2600: Matsigenka"]
["2700: Muniche"]
["2800: Murui-muinani"]
["2900: Matsigenka-montetokunirira"]
["3000: Nomatsigenga"]
["3100: Ocaina"]
["3200: Omagua"]
["3310: Quechua amazónico (Kichwa)"]
["3321: Quechua central (Ancash)"]
["3322: Quechua central (Huánuco)"]
["3323: Quechua central (Wanka)"]
["3324: Quechua central (Pasco)"]
["3331: Quechua norteño (Cajamarca)"]
["3332: Quechua norteño (Inkawasi Kañaris)"]
["3341: Quechua sureño (Chanka)"]
["3342: Quechua sureño (Collao)"]
["3400: Resígaro"]
["3500: Secoya"]
["3600: Sharanahua"]
["3700: Shawi"]
["3800: Shipibo-Konibo"]
["3900: Shiwilu"]
["4000: Taushiro"]
["4100: Ticuna"]
["4200: Urarina"]
["4300: Wampis"]
["4400: Yagua"]
["4500: Yaminahua"]
["4600: Yanesha"]
["4700: Yine"]
["4800: Nahua"]
["5100: Alemán"]
["5200: Inglés"]
["5300: Italiano"]
["5400: Japonés"]
["5500: Portugués"]
["5600: Ruso"]
["5700: Francés"]
["5800: Otra lengua extranjera"]
[]
["307. Lengua Originaria"]
["Utilice los códigos de lengua de la tabla 203"]
[]
["308. Máximo Nivel Educativo Alcanzado"]
["01: Pedag.Concluidos con título"]
["02: Pedag.Concluidos sin título"]
["03: Pedag.No concluidos"]
["04: No Pedag.Concluidos con título"]
["05: No Pedag.Concluidos sin título"]
["06: No Pedag.No concluidos"]
["07: Secundaria concluida"]
["08: Secundaria no concluida"]
["09: Primaria concluida"]
["10: Primaria no concluida"]
["11: Sin Nivel"]
[]
["309. Tipo de institución"]
["01: IESP (Público)"]
["02: IESP (Privado)"]
["03: Universidad Privada"]
["04: Universidad Pública"]
["05: Sin formación superior"]
[]
["310. Especialidad pedagógica o técnica que ha estudiado"]
["01: Educación Inicial"]
["02: Educación Primaria"]
["03: Educación Secundaria"]
["04: Otros estudios pedagógicos"]
["05: Enfermería"]
["06: Secretariado"]
["07: Computación e Informática"]
["08: Otros estudios técnicos"]
[]
["311. ¿Ha sido capacitado en el uso de los materiales?"]
["Marcar según corresponda"]
[]
["312. Vive en la comunidad donde funciona el PRONOEI"]
["Responda SÍ o NO, según corresponda"]
[]
["313. Tiempo de experiencia en el PEC"]
["Anote el tiempo de experiencia en el cargo,"]
["expresado en años calendario cumplidos"]
[]
["314. Nº horas de capacitación recibidas en el año 2018"]
["Anote el número de horas de capacitación para"]
["el desarrollo de sus actividades,"]
["recibidas durante todo el año 2018"]
[]
["Opción"]
["SI"]
["NO"]
[]
["315.2 ¿Cuál es el tipo de discapacidad?"]
["01: Auditiva"]
["02: Visual"]
["03: Física o Motora"]
["04: Otras"]
[]
["316.3 Estudios EIB"]
["01: Doctorado"]
["02: Maestria"]
["03: Segunda especialidad"]
["04: Especialización"]
["05: Actualización"]
["06: Otros"]
[]
["334.3 Asistencia Técnica"]
["01: Uso de cuadernos"]
["02: TICs"]
["03: Inclusión financiera"]
["04: Prevención de la violencia"]
["05: Otro"]
["06: Sin asistencia"]

{"sheet":"C317","index":4,"n_rows":30,"n_cols":31,"rows_kept":30,"cut":false,"hidden":false,"merged":[[6,5,6,16],[2,5,2,16],[1,5,1,16],[18,12,19,12],[18,5,19,5],[18,6,19,6],[18,7,19,7],[18,8,18,10],[17,8,17,10]]}
[]
[null,null,null,null,null,"CENSO EDUCATIVO 2023"]
[null,null,null,null,null,"MATRÍCULA, PROMOTORES(AS) Y MATERIALES EDUCATIVOS"]
[]
[]
[]
[null,null,null,null,null,"PROMOTORES(AS) EDUCATIVOS(AS) COMUNITARIOS(AS) QUE DOMINAN LENGUA ORIGINARIA (Solo para Programas Públicos) "]
[]
["GESTIÓN",null,null,null,null,null,"317. SEGÚN LO ANOTADO EN LA PREGUNTA 306, ¿CUENTA CON PROMOTORES(AS) EDUCATIVOS(AS"]
[null,null,null,null,null,null,"  COMUNITARIOS(AS), QUE DOMINE UNA LENGUA ORIGINARIA?"]
[null,null,null,null,null,null,"Hacer click en el botón [Verificar] para revisar los docentes que dominan una lengua originaria"]
[{"$f":"IF(OR('C100'!J47=\"X\",'C100'!P47=\"X\"),1,IF('C100'!U47=\"X\",3,\"\"))","v":""}]
[null,null,null,null,null,null,null,"Sí   ",null,null,null,null,"¿Cuántos?"]
[]
[null,null,null,null,null,null,null,"No  ",null,null,null,null,"Pase a la sección 400."]
[]
[]
[null,null,null,null,null,null,null,null,317.10000000000002,null,null,317.2,317.3,317.39999999999998,317.5,317.60000000000002,317.7]
[null,null,null,null,null,"Nº","Nº de fila registrado en la pregunta 306","Documento de Identidad","Conocimiento de\nlengua originaria",null,null,"¿Cuenta con estudios en Educación Intercultural Bilingüe?","Solo si respondió \"SÍ\"  en la pregunta 315.2 ¿Cuál fue el tipo de estudios en EIB?","¿Ha recibido capacitación en EIB?","¿El PEC enseña en lengua originaria?","¿El material recibido coincide con la lengua que enseña?","¿En la actualidad el PEC se encuentra en el Registro de Docentes Bilingües?"]
["315.3 ¿Cuál fue el tipo de estudios en EIB?","Corr","Gest","Fmt",null,null,null,null,"Habla","Lee","Escribe"," SI - NO",null," SI - NO"," SI - NO"," SI - NO"," SI - NO"]
["01: Doctorado",1,{"$f":"$A$12","v":""},{"$f":"IF(F21<>\"\",1,0)","v":0},null,{"$f":"IF(AND($B21<=$N$13,$C21=1),$B21,\"\")","v":""},null,null,null,null,null,null,null,null,null,null,null,"","","","","","","","","","","","","",""]
["02: Maestría",{"$f":"B21+1","v":2},{"$f":"$A$12","v":""},{"$f":"IF(F22<>\"\",1,0)","v":0},null,{"$f":"IF(AND($B22<=$N$13,$C22=1),$B22,\"\")","v":""},null,null,null,null,null,null,null,null,null,null,null,"","","","","","","","","","","","","",""]
["03: Segunda especialidad",{"$f":"B22+1","v":3},{"$f":"$A$12","v":""},{"$f":"IF(F23<>\"\",1,0)","v":0},null,{"$f":"IF(AND($B23<=$N$13,$C23=1),$B23,\"\")","v":""},null,null,null,null,null,null,null,null,null,null,null,"","","","","","","","","","","","","",""]
["04: Especialización",4,{"$f":"$A$12","v":""},{"$f":"IF(F24<>\"\",1,0)","v":0},null,{"$f":"IF(AND($B24<=$N$13,$C24=1),$B24,\"\")","v":""},null,null,null,null,null,null,null,null,null,null,null,"","","","","","","","","","","","","",""]
["05: Actualización",null,null,null,null,null,null,""]
["06: Otro"]
[]
[]
["SI"]
["NO"]

{"sheet":"C400","index":5,"n_rows":83,"n_cols":13,"rows_kept":83,"cut":false,"hidden":false,"merged":[[82,9,82,12],[69,9,69,12],[62,9,62,12],[45,9,48,12],[14,5,17,5],[14,7,16,7],[14,8,16,8],[14,9,16,9],[1,5,1,10],[2,5,2,10],[22,3,23,3],[14,10,15,12],[16,10,17,10],[16,11,17,11],[16,12,17,12],[18,3,19,3],[14,3,17,3],[20,4,20,5],[20,3,21,3],[21,4,21,5]]}
[]
[null,null,null,null,null,"CENSO EDUCATIVO 2023"]
[null,null,null,null,null,"MATRÍCULA, PROMOTORES(AS) Y MATERIALES EDUCATIVOS"]
[]
[]
[]
[null,null,"400. MATERIALES EDUCATIVOS (Solo para gestión pública)"]
[]
["GESTIÓN",null,null,"401. ¿ RECIBIÓ MATERIALES CORRESPONDIENTES A LA DOTACIÓN 2023 ?"]
[{"$f":"IF(OR(UPPER('C100'!J47)=\"X\",UPPER('C100'!P47)=\"X\"),\"X\",\"\")","v":""}]
[{"$f":"IF(UPPER('C100'!U47)=\"X\",\"X\",\"\")","v":""},null,null,"Sí  ",null,"No  ",null,null,"Pase a la pregunta 500"]
[]
[null,null,null,"402. MATERIALES EDUCAIVO"]
[]
[null,null,null,"Beneficiarios",null,"Material Educativo",null,"¿Recibio los materiales?","Primera \nFecha de\nRecepción","Última\nFecha de\nRecepción","Cantidad de Material"]
[]
[null,null,null,null,null,null,{"$f":"COUNTIF(H19:H24,\"NO\")","v":0},null,null,null,"Total Recibido","Material Sobrante","Material Faltante"]
[null,null,null,null,null,null,{"$f":"COUNTIF(H19:H24,\"SI\")+COUNTIF(H19:H24,\"NO\")","v":0}," SI - NO","Día/Mes/Año","Día/Mes/Año"]
["01",null,null,"Niños y niñas de 4 y 5 años","Material impreso para niños y niñas de 4 años"]
["02",null,null,null,"Material impreso para niños y niñas de 5 años"]
["03",null,null,"Niños y niñas de 4 y 5 años EIB","Cuaderno de trabajo en lengua originaria para niños(as) de 4 años"]
["04",null,null,null,"Cuaderno de trabajo en lengua originaria para niños(as) de 5 años"]
["05",null,null,"SECCIÓN","Juegos de mesa para secciones de niños y niñas de 4 años"]
["06",null,null,null,"Juegos de mesa para secciones de niños y niñas de 5 años"]
[null,null,null,null,null,null,null,null,null,{"$f":"COUNTIF(J17:J24,\"SI\")+COUNTIF(J17:J24,\"NO\")","v":0}]
[null,null,null,"403. EL MATERIAL IMPRESO RECIBIDO, ¿CORRESPONDE A LA LENGUA DE LOS ESTUDIANTES?"]
[]
[null,null,null,"Sí  ",null,"No  "]
[]
[null,null,null,"404. EL MATERIAL IMPRESO RECIBIDO, ¿SE ENCUENTRA EN EL AULA?"]
[]
[null,null,null,"Sí  ",null,"No  "]
[]
[null,null,null,"405. LOS MATERIALES EDUCATIVOS (IMPRESO Y CONCRETO), ¿SE ENCUENTRAN AL ALCANCE DE LOS NIÑOS Y NIÑAS?"]
[]
[null,null,null,"Sí  ",null,"No  "]
[]
[]
[null,null,"500. OTROS RECURSOS DISPONIBLES PARA LA ENSEÑANZA (Para Pronoei Públicas y Privadas)"]
[]
[null,null,null,"501. ¿QUÉ EDADES ATENDIDAS CUENTAN CON UNA BIBLIOTECA DE AULA? DETALLE EL NÚMERO DE EJEMPLARES (LIBROS QUE LA CONFORMAN)."]
[]
[null,null,null,null,null,null,null,"Nº Total de"]
[null,null,null,null,null,"Edad atendida",null,"Ejemplares"]
[null,null,null,null,null," 0 años"]
[null,null,null,null,null," 1 año",null,null,null,"Las bibliotecas de aula están constituidas por libros, láminas y otros materiales didácticos similares, puestos al alcance de los estudiantes en el aula."]
[null,null,null,null,null," 2 años"]
[null,null,null,null,null," 3 años"]
[null,null,null,null,null," 4 años"]
[null,null,null,null,null," 5 años y más"]
[null,null,null,null,null," NINGÚNA EDAD",null,{"$f":"SUM(H45:H50)","v":0}]
[]
[]
[null,null,"600. ACTIVIDAD FÍSICA Y PSICOMOTROCIDAD"]
[]
[null,null,null,"601. DURANTE EL AÑO 2022, EN ESTE PRONOEI, ¿SE FOMENTÓ LA REALIZACIÓN DE ACTIVIDADES FÍSICAS O DEPORTE,"]
[null,null,null,"CON LA FINALIDAD DE PRIORIZAR EL CUIDADO DEL ESTUDIANTE Y SU BIENESTAR INTEGRAL? "]
[]
[null,null,null,"Sí  ",null,null,null,"Actividades de movimiento"]
[null,null,null,null,null,null,null,"Actividades de deporte"]
[null,null,null,null,null,null,null,"Actividades artístico culturales"]
[null,null,null,null,null,null,null,"Actividades complementarias de encuentro con la comunidad educativa"]
[null,null,null,"No  ",null,null,null,"Otras actividades"]
[]
[]
[null,null,null,"602. EN EL PRESENTE AÑO 2022, ¿ESTE PRONOEI TIENE PLANIFICADO LA EJECUCIÓN DE TALLERES COMPLEMENTARIOS?"]
[null,null,null,null,null,null,"Marque con una “X”, una o más opciones"]
[null,null,null,"Sí  ",null,null,null,"Orquestando"]
[null,null,null,null,null,null,null,"Talleres deportivos recreativos"]
[null,null,null,"No",null,null,null,"Otro especificar"]
[]
[]
[null,null,null,"603. ¿ESTE PRONOEI CUENTA CON TALLER DE PSICOMOTROCIDAD?"]
[]
[null,null,null,"Sí  ",null,"No  "]
[]
[null,null,null,null,null,null,null,"Nro. de horas"]
[null,null,null,null,null,"¿Cuántas horas a la semana?"]
[]
[null,null,null,null,null,"¿Las actividades de psicomotrocidad donde se realizan?"]
[null,null,null,null,null,null,null,"Patio"]
[null,null,null,null,null,null,null,"Aula de psicomotrocidad"]
[null,null,null,null,null,null,null,"Otro - especificar"]

{"sheet":"C700","index":6,"n_rows":69,"n_cols":16,"rows_kept":69,"cut":false,"hidden":false,"merged":[[68,5,68,7],[65,13,65,15],[54,13,54,15],[1,5,1,14],[2,5,2,14],[44,13,44,15],[27,5,27,7],[37,5,37,7],[46,5,46,7],[57,5,57,7]]}
[""]
["",null,null,null,null,"CENSO EDUCATIVO 2023"]
[null,null,null,null,null,"MATRÍCULA, PROMOTORES(AS) Y MATERIALES EDUCATIVOS"]
[]
[]
[]
[null,"700. APRENDO EN CASA - MULTICANALES"]
[]
[null,"701. ¿EL DOCENTE HACE USO DE LOS RECURSOS QUE SE ENCUENTRAN ALOJADOS\n",null,null,null,null,null,null,null,"708. ¿EN QUÉ MOMENTO DE LA JORNADA PEDAGÓGICA SUS DOCENTES O PROMOTORAS"]
[null,null,"EN LAS PLATAFORMAS DE MINEDU? (Perueduca - Aprendo en Casa)",null,null,null,null,null,null,null,"PREFIEREN UTILIZAR LOS RECURSOS Y MATERIALES EDUCATIVOS DIGITALES"]
[null,null,null,null,null,null,null,null,null,null,"DE LA PLATAFORMA WEB APRENDO EN CASA?"]
[null,null,"Sí",null,null," No  "]
[null,null,null,null,null,null,null,null,null,null,null,"Marque con una \"X\", una o más opciones"]
[null,"702. EN SU SERVICIO EDUCATIVO, ¿HAN USADO LOS RECURSOS Y MATERIALES",null,null,null,null,null,null,null,null,null,null,"Actividades permanentes"]
[null,null,"EDUCATIVOS DE LA PLATAFORMA APRENDO EN CASA 2023?",null,null,null,null,null,null,null,null,null,"Juego en sectores"]
[null,null,null,null,null,null,null,null,null,null,null,null,"Actividad de un proyecto o unidad didáctica"]
[null,null,"Sí",null,null," No  ",null,"Pase a la",null,null,null,null,"Talleres"]
[null,null,null,null,null,null,null,"pregunta 710"]
[null,"703. ¿CUÁL O CUÁLES SON LOS ACTORES DE SU SERVICIO EDUCATIVO QUE HAN"]
[null,null,"USADO LOS RECURSOS Y MATERIALES EDUCATIVOS DE LA PLATAFORMA "]
[null,null,"APRENDO EN CASA 2023?",null,null,null,null,null,null,"709. ¿QUÉ TAN SATISFECHOS SE ENCUENTRAN LOS DOCENTES Y/O PROMOTORAS"]
[null,null,null,null,null,null,null,null,null,null,"DE SU SERVICIO EDUCATIVO CON RESPECTO A LOS MATERIALES Y RECURSOS "]
[null,null,null,"Marque con una \"X\", una o más opciones",null,null,null,null,null,null,"PROPORCIONADOS EN LA PLATAFORMA APRENDO EN CASA 2023?"]
[null,null,null,null,"Docentes"]
[null,null,null,null,"Familias",null,null,null,null,null,null,"Marque con una \"X\", una opción"]
[null,null,null,null,"Estudiantes",null,null,null,null,null,null,null,"Satisfecho"]
[null,null,null,null,"Directivos",null,null,null,null,null,null,null,"Poco satisfecho"]
[null,null,null,null,"Otro",null,null,null,null,null,null,null,"Insatisfecho"]
[null,null,null,null,null,null,null,null,null,null,null,null,"No aplica"]
[null,"704. LOS DOCENTES Y/O PEC DE SU SERVICIO EDUCATIVO HAN USADO LOS MATERIALES"]
[null,null,"Y RECURSOS DE LA PLATAFORMA APRENDO EN CASA 2023 PARA:"]
[]
[null,null,null,"Marque con una \"X\", una o más opciones",null,null,null,null,null,"710. ¿LOS ESTUDIANTES HACEN USO DE LAS TABLETAS?"]
[null,null,null,null,"Reforzar los aprendizajes de los estudiantes"]
[null,null,null,null,"Complementar los aprendizajes de sus estudiantes",null,null,null,null,null,"Sí",null," No  ",null,null,"Pase a completar datos"]
[null,null,null,null,"Generar el interés de sus estudiantes",null,null,null,null,null,null,null,null,null,null,"del director y/o"]
[null,null,null,null,"Reforzar mensajes a las familias",null,null,null,null,null,null,null,null,null,null,"responsable del llenado"]
[null,null,null,null,"Otro"]
[null,null,null,null,null,null,null,null,null,null,null,"¿Por qué no hacen uso de las tabletas?"]
[null,"705. LOS ESTUDIANTES HAN USADO LOS RECURSOS Y MATERIALES EDUCATIVOS"]
[null,null,"DE LA PLATAFORMA APRENDO EN CASA 2023 PARA:",null,null,null,null,null,null,null,null,"Marque con una “X”, una o más opciones"]
[null,null,null,null,null,null,null,null,null,null,null,null,"Por miedo/temor a dañarlas"]
[null,null,null,"Marque con una \"X\", una o más opciones",null,null,null,null,null,null,null,null,"Porque no saben cómo usarla "]
[null,null,null,null,"Fortalecer sus aprendizajes",null,null,null,null,null,null,null,"Porque no funcionan "]
[null,null,null,null,"Complementar sus aprendizajes",null,null,null,null,null,null,null,"Otros - especificar"]
[null,null,null,null,"Resolver dudas"]
[null,null,null,null,"Otro"]
[]
[null,"706. ¿CUÁL ES EL FORMATO DE LOS RECURSOS Y MATERIALES EDUCATIVOS DE LA",null,null,null,null,null,null,null,"711. SUS ESTUDIANTES, ¿QUÉ ACCIONES REALIZAN CON AYUDA DE LAS TABLETAS?"]
[null,null,"PLATAFORMA APRENDO EN CASA 2023 PREFERIDO POR LOS ACTORES DE SU "]
[null,null,"SERVICIO EDUCATIVO?",null,null,null,null,null,null,null,null,"Marque con una “X”, una o más opciones"]
[null,null,null,null,null,null,null,null,null,null,null,null,"Buscar información"]
[null,null,null,"Marque con una \"X\", una opción",null,null,null,null,null,null,null,null,"Elaborar sus productos"]
[null,null,null,null,"PDF",null,null,null,null,null,null,null,"Organizar sus actividades"]
[null,null,null,null,"Interactivo",null,null,null,null,null,null,null,"Otros - especificar"]
[null,null,null,null,"Audio"]
[null,null,null,null,"Vídeo"]
[null,null,null,null,"Otro"]
[null,null,null,null,null,null,null,null,null,"712. ¿QUÉ APLICACIONES O UTILITARIOS DE LAS TABLET SON LOS MÁS INTEGRADOS"]
[null,"707. SEGÚN LOS DOCENTES Y/O PEC DE SU SERVICIO EDUCATIVO ¿QUÉ TIPO",null,null,null,null,null,null,null,null,"/USADOS POR LOS DOCENTES EN EL PROCESO DE ENSEÑANZA Y APRENDIZAJE?"]
[null,null,"DE MATERIALES CONSIDERAN NECESARIOS INCLUIR EN LA PLATAFORMA"]
[null,null,"DE APRENDO EN CASA 2023?",null,null,null,null,null,null,null,null,"Marque con una “X”, una o más opciones"]
[null,null,null,null,null,null,null,null,null,null,null,null,"Aplicaciones para crear objetos virtuales"]
[null,null,null,"Marque con una \"X\", una o más opciones",null,null,null,null,null,null,null,null,"Aplicaciones que brindan información"]
[null,null,null,null,"Libros digitales",null,null,null,null,null,null,null,"Utilitarios, como lector y editor PDF, AnyDesk, etc."]
[null,null,null,null,"Audio cuentos",null,null,null,null,null,null,null,"Otros - especificar"]
[null,null,null,null,"Juegos educativos"]
[null,null,null,null,"Interactivos"]
[null,null,null,null,"Otro"]

{"sheet":"C800","index":7,"n_rows":191,"n_cols":20,"rows_kept":191,"cut":false,"hidden":false,"merged":[[71,3,72,4],[71,5,72,5],[71,6,72,6],[90,5,90,8],[33,5,33,8],[35,5,35,7],[37,5,37,7],[71,8,72,8],[71,7,72,7],[170,2,170,6],[170,7,170,9],[1,1,1,19],[2,1,2,19],[167,2,167,6],[167,7,167,9],[169,2,169,6],[169,7,169,9],[161,2,161,19],[168,2,168,6],[168,7,168,9],[16,14,16,17],[20,13,20,18],[167,17,167,19],[24,13,24,18],[91,5,91,6],[78,16,78,19],[121,15,121,18],[98,17,100,17],[104,15,104,16],[105,15,105,16],[106,15,106,16],[107,15,107,16],[109,15,109,16],[110,15,110,16],[98,15,100,16],[101,18,101,19],[102,18,102,19],[110,18,110,19],[103,18,103,19],[104,18,104,19],[105,18,105,19],[98,11,100,13],[98,14,100,14],[107,5,107,8],[121,5,121,8],[98,18,100,19],[103,15,103,16],[108,15,108,16],[106,18,106,19],[107,18,107,19],[108,18,108,19],[109,18,109,19],[137,11,139,11],[170,17,170,19],[167,10,167,16],[168,10,168,16],[169,10,169,16],[170,10,170,16],[169,17,169,19],[168,17,168,19],[18,6,18,8],[146,18,146,19],[147,18,147,19],[148,18,148,19],[149,18,149,19],[137,18,139,19],[141,18,141,19],[142,18,142,19],[143,18,143,19],[144,18,144,19],[145,18,145,19],[137,12,139,16],[137,17,139,17],[140,18,140,19],[101,15,101,16],[102,15,102,16]]}
[""]
["","CENSO EDUCATIVO 2023"]
[null,"MATRÍCULA, PROMOTORES(AS) Y MATERIALES EDUCATIVOS"]
[]
[]
[]
[null,"800. DEL LOCAL DONDE FUNCIONA EL PRONOEI"]
[]
[null,"801. EL LOCAL DONDE FUNCIONA EL PRONOEI, ¿CUENTA CON LA LICENCIA",null,null,null,null,null,null,null,null,"808. EL SERVICIO DE ENERGÍA ELÉCTRICA QUE TIENE EL LOCAL PROVIENE DE:"]
[null,null,"DE FUNCIONAMIENTO?",null,null,null,null,null,null,null,null,"Marque con una “X”, una opción"]
[]
[null,null," Sí",null,null,null,null,null,null,null,null,null,"Red Pública (de una empresa distribuidora de energía eléctrica)"]
[null,null,null,null,null,null,null,null,null,null,null,null,"Generador o motor del Municipio"]
[null,null,null,null,null,null,null,null,null,null,null,null,"Generador o motor del local educativo"]
[null,"802. ¿EL AMBIENTE ASIGNADO ES DE USO EXCLUSIVO PARA EL PRONOEI ?",null,null,null,null,null,null,null,null,null,null,"Generador o motor de la Comunidad",null,null,null,null,null,null,"Pase a la"]
[null,null,null,null,null,null,null,null,null,null,null,null,"No Tiene",null,null,null,null,null,null,"pregunta 810"]
[null,null," Sí",null,null,null,null,null,null,null,null,null,"Otro",null,null,null,null,null,null,{"$f":"CONCATENATE(L13,L14,L15,L16,L17,M32)","v":""}]
[]
[null,null,"No",null,"¿ CON QUIÉN COMPARTE",null,null,null,null,null,null,null,null,"1. Empresa proveedora del servicio de energía eléctrica :"]
[null,null,null,null,"EL AMBIENTE ASIGNADO?",null,null,null,null,null,null,null,null,"Nombre:",null,null,null,null,null,"Suministro:"]
[]
[]
[null,"803. TIPO DE LOCAL DONDE FUNCIONA EL PRONOEI",null,null,null,null,null,null,null,null,null,null,null,"2.  Empresa proveedora del servicio de energía eléctrica :"]
[null,null,"Marque con una “X”, una opción",null,null,null,null,null,null,null,null,null,null,"Nombre:",null,null,null,null,null,"Suministro:"]
[]
[null,null,null,null,"Local construido para uso del PRONOEI"]
[null,null,null,null,"Vivienda de la Promotora educativa comunitaria",null,null,null,null,null,"809. ¿TIENE EL LOCAL SERVICIO DE AGUA DE LUNES A VIERNES DURANTE TODO"]
[null,null,null,null,"Otra vivienda particular, prestada al PRONOEI",null,null,null,null,null,null,"EL HORARIO DE CLASES?"]
[null,null,null,null,"Local municipal"]
[null,null,null,null,"Local comunal",null,null,null,null,null,null,"Sí","",null,null,"Pase a la pregunta 811."]
[null,null,null,null,"Local de la Parroquia o Iglesia"]
[null,null,null,null,"Institución Educativa",null,null,null,null,null,null,"No",""]
[null,null,null,null,"No tiene local fijo"]
[null,null,null,null,"Otros",null,null,null,null,null,"810. ¿CUENTA CON DEPÓSITOS DE ALMACENAMIENTO DE AGUA?"]
[null,null,""]
[null,null,"",null,"Código modular :  ",null,null,null,null,null,null,"Sí",null,null,null,"No  ",null,null,"Pase a la pregunta 812."]
[null,null,""]
[null,null,null,null,"Nivel :  "]
[null,null,null,null,null,null,null,null,null,null,null,null,"¿SU CAPACIDAD ES SUFICIENTE?"]
[null,"804. ¿CUÁL ES EL AREA DEL TERRENO DEL LOCAL?"]
[null,null,null,null,null,null,null,null,null,null,null,null,"Sí",null,null,"No  "]
[null,null,null,"Área Total del terreno",null,null,":"]
[null,null,null,null,null,null,null,null,null,null,"811. ¿CUÁL ES EL ESTADO DE CONSERVACIÓN DEL DEPÓSITO DE ALMACENA-"]
[null,null,null,null,"Número de pisos",null,null,null,null,null,{"$f":"CONCATENATE(M30,M36)","v":""}," MIENTO DE AGUA? (Si tiene más de uno, refiérase a “la mayoría”)"]
[null,null,null,null,"Área Techada del primer piso"]
[null,null,null,null,null,null,null,null,null,null,null,"Marque con una “X”, una opción"]
[null,null,null,"Área Construída (todos los pisos)",null,null,":",null,{"$f":"H42*I44","v":0},null,null,"","En buen estado"]
[null,null,null,"Área sin construir",null,null,":",null,{"$f":"H42-I45","v":0},null,null,"","Requiere mantenimiento"]
[null,null,null,null,null,null,null,null,null,null,null,"","Requiere sustituirse"]
[null,"805. ¿CUÁL ES EL ESTADO DEL MÓDULO PREFABRICADO DONDE FUNCIONA EL"]
[null,null,"PRONOEI?",null,null,null,null,null,null,null,"812. EL BAÑO O SERVICIO HIGIÉNICO QUE TIENE EL LOCAL ESTÁ CONECTADO A:"]
[]
[null,null,"Marque con una \"X\", una opción",null,null,null,null,"Ax: Inicial",null,null,null,"Marque con una “X”, una opción"]
[null,null,null,"Bueno",null,null,null,"B0: Primaria",null,null,null,null,"Red Pública de desagüe"]
[null,null,null,"Regular",null,null,null,"F0: Secundaria",null,null,null,null,"Pozo séptico (recibe tratamiento con cal, ceniza u otros desintegrantes de ...)"]
[null,null,null,"Malo",null,null,null,"Dx: CEBA",null,null,null,null,"Pozo ciego o negro (no recibe tratamiento alguno para desintegrar residuos)"]
[null,null,null,null,null,null,null,"Ex: CEBE",null,null,null,null,"Río, acequia o canal"]
[null,null,null,null,null,null,null,null,null,null,null,null,"No tiene"]
[null,"806. EL TERRENO DEL LOCAL DONDE FUNCIONA EL PRONOEI, ¿ESTÁ SANEADO A"]
[null,null,"NOMBRE DEL MINEDU?",null,null,null,null,null,null,null,"813. ¿LOS SERVICIOS HIGIÉNICOS SON DE USO EXCLUSIVO DEL PRONOEI?"]
[]
[null,null," Sí",null,null,"No  ",null,null,null,null,null," Sí",null,null,null," No  "]
[]
[]
[null,"807. EXISTE ALGÚN DOCUMENTO QUE ACREDITE EL SANEAMIENTO?",null,null,null,null,null,null,null,null,null,null,"¿SON DIFERENCIADOS PARA NIÑOS Y NIÑAS?"]
[]
[null,null," Sí",null,null,"No  ",null,null,null,null,null,null," Sí   ",null,null," No  "]
[]
[]
[null,"814. ESPACIOS CON QUE CUENTA EL PRONOEI",null,null,null,null,null,null,null,null,"818. MATERIAL PREDOMINANTE EN LOS PISOS DEL ESPACIO EDUCATIVO"]
[null,null,null,null,null,null,null,null,null,null,null,"Marque con un aspa “X” solo un casillero"]
[null,null,null,"ESPACIO",null," Si"," No","CANTIDAD","M2"]
[null,null,null,null,null,null,null,null,null,null,null,null,"1 - Tierra"]
[null,null,"01","Aula",null,null,null,null,null,null,null,null,"2 - Madera (entablado)"]
[null,null,"02","Sala de psicomotrocidad",null,null,null,null,null,null,null,null,"3 - Cemento"]
[null,null,"03","Depósito de material educativo",null,null,null,null,null,null,null,null,"4 - Loseta, cerámico o similar"]
[null,null,"04","SS.HH para niños y niñas",null,null,null,null,null,null,null,null,"5 - Vinílico, pisopak o similar"]
[null,null,"05","SS.HH. para adultos",null,null,null,null,null,null,null,null,"6 - Parquet o madera pulida"]
[null,null,"06","Cocina",null,null,null,null,null,null,null,null,"7 -  Otro (especificar)"]
[null,null,"07","Despensa"]
[null,null,"08","Patio",null,null,null,null,null,null,"819. ¿EL ESPACIO EDUCATIVO CUENTA CON VENTANAS?"]
[null,null,"09","Jardín"]
[null,null,"10","Juegos recreativos",null,null,null,null,null,null,null,"Sí",null,null,null,"No  ",null,null,"Pase a la pregunta 821"]
[null,null,"11","Contenedores de basura"]
[null,null,"12","Otro",null,null,null,null,null,null,"820. ¿LAS VENTANAS DEL ESPACIO EDUCATIVO ESTÁN LIBRES PARA LA ILUMINA-"]
[null,null,null,null,null,{"$f":"COUNTIF(F74:G85,\"X\")","v":0},null,{"$f":"SUM(H74:H85)","v":0},{"$f":"SUM(I74:I85)","v":0},null,null,"CIÓN Y VENTILACIÓN?"]
[null,"815. ¿CUÁL ES EL ESTADO DE CONSERVACIÓN DEL ESPACIO EDUCATIVO QUE USA"]
[null,null,"CON MAYOR FRECUENCIA, DONDE SE REALIZAN LAS ACTIVIDADES CON LAS",null,null,null,null,null,null,null,null,"Sí",null,null,null,"No  "]
[null,null,"NIÑAS Y NIÑOS?"]
[null,null,null,null,null,null,null,null,null,null,"821. PARA EL CICLO II; EN EL ESPACIO EDUCATIVO DEL PRONOEI, ¿SE CUENTA CON"]
[null,null,null,null,"COMPONENTE","Estado de conservación",null,null,null,null,null,"MESA O MESAS PARA EL TRABAJO GRUPAL CON LOS NIÑOS Y NIÑAS?"]
[null,null,null,null,null,"Bueno",null,"Regular","Mal estado"]
[null,null,{"$f":"CONCATENATE(G93,H93,I93)","v":""},"01","Piso",null,null,null,null,null,null,"Sí",null,null,null,"No  ",null,null,"Pase a la pregunta 823"]
[null,null,{"$f":"CONCATENATE(G94,H94,I94)","v":""},"02","Pared"]
[null,null,{"$f":"CONCATENATE(G95,H95,I95)","v":""},"03","Techo",null,null,null,null,null,"822. RESPECTO A LA MESA O MESAS PARA EL TRABAJO GRUPAL DE LOS NIÑOS Y"]
[null,null,null,null,null,null,null,{"$f":"COUNTIF(G93:I95,\"X\")","v":0},null,null,null,"NIÑAS INDIQUE SU FORMA, ESTADO DE CONSERVACIÓN Y PARA ¿CUÁNTOS "]
[null,"816. MATERIAL PREDOMINANTE EN LAS PAREDES DEL ESPACIO EDUCATIVO",null,null,null,null,null,null,null,null,null,"NIÑOS SIRVE CADA UNA?"]
[]
[null,null,"Marque con un aspa “X” solo un casillero",null,null,null,null,null,null,null,null,"Mobiliario",null,null,"¿Tiene?","Forma de Mesa",null,"¿A cuantos sirve?","Estado de conservación de la mesa?"]
[]
[null,null,null,"1 - Estera, cartón o plástico"]
[null,null,null,"2 - Eternit o fibra de concreto",null,null,null,null,null,null,null,"01","Mesa"]
[null,null,null,"3 - Madera",null,null,null,null,null,null,null,"02","Mesa"]
[null,null,null,"4 - Piedra con barro, cal o cemento",null,null,null,null,null,null,null,"03","Mesa"]
[null,null,null,"5 - Quincha",null,null,null,null,null,null,null,"04","Mesa"]
[null,null,null,"6 - Adobe o tapial",null,null,null,null,null,null,null,"05","Mesa"]
[null,null,null,"7 - Ladrillo o concreto",null,null,null,null,null,null,null,"06","Mesa"]
[null,null,null,"8 - Otro  (especificar)",null,null,null,null,null,null,null,"07","Mesa"]
[null,null,null,null,null,null,null,null,null,null,null,"08","Mesa"]
[null,"817. MATERIAL PREDOMINANTE EN LOS TECHOS DEL ESPACIO EDUCATIVO",null,null,null,null,null,null,null,null,null,"09","Mesa"]
[null,null,"Marque con un aspa “X” solo un casillero",null,null,null,null,null,null,null,null,"10","Mesa"]
[null,null,null,null,null,null,null,null,null,null,null,null,null,null,{"$f":"COUNTIF(O102:O111,\"SI\")+COUNTIF(O102:O111,\"NO\")","v":0}]
[null,null,null,"01 - Paja, hoja de palmera, etc.",null,null,null,null,null,null,"823. ¿LAS MESAS Y SILLAS CORRESPONDEN AL TAMAÑO DE LOS NIÑOS Y NIÑAS?"]
[null,null,null,"02 - Estera, cartón o plástico"]
[null,null,null,"03 - Lata o latón",null,null,null,null,null,null,null,"Sí",null,null,null,"No  "]
[null,null,null,"04 - Caña con barro"]
[null,null,null,"05 - Calamina",null,null,null,null,null,null,"824. ¿CUÁL ES LA FORMA DE ACCESO AL LOCAL DEL PRONOEI?"]
[null,null,null,"06 - Fibra de cemento",null,null,null,null,null,null,null,null,"Marque con una “X”, una opción"]
[null,null,null,"07 - Teja",null,null,null,null,null,null,null,null,null,"Rampa"]
[null,null,null,"08 - Madera",null,null,null,null,null,null,null,null,null,"Gradas"]
[null,null,null,"09 - Concreto armado",null,null,null,null,null,null,null,null,null,"Sin desnivel"]
[null,null,null,"10 - Otro (especificar)",null,null,null,null,null,null,null,null,null,"Otro"]
[]
[]
[null,"825. EL LOCAL DEL PRONOEI, ¿HA SUFRIDO DAÑOS SEVEROS COMO:",null,null,null,null,null,null,null,null,"828. AÑO DE EJECUCIÓN DE LA OBRA DE CONSTRUCCIÓN DEL LOCAL"]
[null,null,"RAJADURAS EN PAREDES, COLUMNAS, CORROSIÓN DE LAS COLUMNAS",null,null,null,null,null,null,null,null,"DONDE FUNCIONA EL PRONOEI"]
[null,null,"EXPUESTAS, ENTRE OTROS, EN LOS ÚLTIMOS 5 AÑOS POR ALGÚN"]
[null,null,"EVENTO NATURAL?",null,null,null,null,null,null,null,null,null,"Sabe   ",null,null,"No sabe",null,null,"Año :"]
[]
[null,null," Sí",null,"No  ",null,null,null,null,null,"829. ¿EL LOCAL CUENTA CON EL CERTIFICADO DE INSPECCIÓN TÉCNICA"]
[null,null,null,null,null,null,null,null,null,null,null,"DE SEGURIDAD EN EDIFICACIONES – ITSE VIGENTE"]
[]
[null,null,"¿Existe algún documento (constancia, certificado o informe)",null,null,null,null,null,null,null,null," Sí",null,null,null,"No  "]
[null,null,"que acredite los daños severos del local del PRONOEI?"]
[null,null,null,null,null,null,null,null,null,null,"830. ORDENE, DE ACUERDO A PRIORIDAD, LAS PRINCIPALES NECESIDADES"]
[null,null," Sí",null,"No  ",null,null,null,null,null,null,"DE ACONDICIONAMIENTO DEL LOCAL DONDE FUNCIONA EL PRONOEI"]
[]
[null,null,null,null,null,null,null,null,null,null,null,"PRIO- RI- DAD","ACCIONES DE ACONDICIONAMIENTO",null,null,null,null,"AULAS"," SERVICIOS\nHIGIÉNICOS"]
[null,"826. EL LOCAL DONDE FUNCIONA EL PRONOEI, ¿HA RECIBIDO RECURSOS"]
[null,null,"PARA MANTENIMIENTO?"]
[null,null,null,null,null,null,null,null,null,null,{"$f":"COUNTIF($L$141:$L$150,L141)","v":0},null,"Reparación de techos"]
[null,null," Sí",null,"No  ",null,null,null,null,null,0,null,"Reparación de muros"]
[null,null,null,null,null,null,null,null,null,null,0,null,"Reparación de puertas"]
[null,null,null,null,null,null,null,null,null,null,0,null,"Reparación de ventanas"]
[null,null,null,null,null,null,null,null,null,null,0,null,"Reparación de instalaciones sanitarias"]
[null,"827. TIPO DE ENTIDAD EJECUTORA DE LA OBRA DE CONSTRUCCIÓN",null,null,null,null,null,null,null,null,0,null,"Reparación de instalaciones eléctricas"]
[null,null,"DEL LOCAL DONDE FUNCIONA EL PRONOEI",null,null,null,null,null,null,null,0,null,"Reparación de bienes"]
[null,null,null,null,null,null,null,null,null,null,0,null,"Reposición yo adquisición de bienes"]
[null,null,null,"Marque con una “X”, solo una opción",null,null,null,null,null,null,0,null,"Reparación de pisos"]
[null,null,null,null,"Gobierno Nacional / Proyecto especial",null,null,null,null,null,0,null,"Pintado"]
[null,null,null,null,"Gobierno Regional / Local",null,null,null,null,null,null,null,null,null,null,null,null,null,{"$f":"COUNTIF(R141:T150,\"X\")","v":0}]
[null,null,null,null,"APAFA / Autoconstrucción",null,null,null,null,null,"831. ¿LAS ÁREAS ABIERTAS DEL PRONOEI CUENTAN CON CUBIERTAS PARA LA"]
[null,null,null,null,"Entidades cooperativas / ONG ",null,null,null,null,null,null,"PROTECCIÓN DE LOS ESTUDIANTES POR LA EXPOSICIÓN PROLONGADA A"]
[null,null,null,null,"Empresa privada",null,null,null,null,null,null,"LA RADIACIÓN SOLAR?"]
[null,null,null,null,"No especifica"]
[null,null,null,null,null,null,null,null,null,null,null," Sí",null,null,null,"No  "]
[]
[]
[null,"ANOTACIONES COMPLEMENTARIAS QUE CONSIDERE NECESARIO AGREGAR (máximo 200 caracteres)"]
[]
[]
[]
[]
[]
[null,"DATOS DEL PROFESOR COORDINADOR(A) PROMOTOR(A) Y/O RESPONSABLE (S) DEL LLENADO DE LA CÉDULA"]
[]
[]
[null,null,"NOMBRES Y APELLIDOS",null,null,null,null,"CARGO",null,null,"CORREO ELECTRÓNICO",null,null,null,null,null,null,"TELÉFONO"]
[]
[]
[]
[]
[]
[]
[]
[]
["PROF.COORDINADOR(A)"]
["PROMOTOR(A)-PEC"]
["OTRO"]
[]
[]
["Forma de la mesa"]
["1: Circular"]
["2: Cuadrada"]
["3: Rectangular"]
["4: Otro"]
[]
["Estado de conservación de la mesa?"]
["1: En buen estado"]
["2: Req. mantenimiento"]
["3: Req. sustituirse"]

{"sheet":"Enviar","index":8,"n_rows":9,"n_cols":4,"rows_kept":9,"cut":false,"hidden":false,"merged":[[0,1,0,4],[1,1,1,4]]}
[null,"CENSO EDUCATIVO 2023"]
[null,"MATRÍCULA, PROMOTORES(AS) Y MATERIALES EDUCATIVOS"]
[]
[]
[null,null,"Paso 1:","Realice el ENVÍO con su clave EOL."]
[]
[null,null,"Paso 2:","Una vez realizado el ENVÍO,  Revise su constancia de envio."]
[]
[null,null,"  ADVERTENCIA","ASEGÚRESE DE REGISTRAR TODA LA INFORMACIÓN DEL NIVEL INFORMANTE"]